Cogmind - Beta 14 @@@ ROGUE MODE // 2024.09.24 @ 18:30:49 Player: N.W.L Result: Destroyed by Quarantine Guard with Hypercooled Linear Accelerator Performance ------------- Evolutions (7) 3500 Regions Visited (34) 6800 Robots Destroyed (429) 2145 Value Destroyed (24342) 24342 Prototype IDs (89) 1780 Alien Tech Used (5) 1000 Bonus (14841) 14841 TOTAL SCORE: 54408 Bonus ------- Triggered High Security 500 High Alert Combat Kills 3275 Follower Combat Kills 4510 Entered Garrisons 1400 Used RIF Installer 3500 Network Hubs Disabled 200 Aligned with FarCom 300 Met Zhirov 300 Built Enhanced Grunts 300 A7 Reached Mainframe 300 Met R17 at Cetus 500 Met R17 at Research 2000 Friendly Fire -2244 Cogmind --------- Core Integrity 0/1300 Matter 250/300 Energy 90/100 System Corruption 42% Temperature Cool (69) Movement Core (200) Ox3 Location -3/Quarantine Parts ------- > --- POWER (2) -------- (None) > --- PROPULSION (6) --- (None) > --- UTILITY (9) ------ (None) > --- WEAPON (4) ------- Sigix Broadsword > --- INVENTORY (5) ---- Fusion Bomb Launcher Peak State ------------ > --- POWER ------------ Quantum Reactor Reinforced Quantum Reactor > --- PROPULSION ------- Centrium Heavy Treads Centrium Heavy Treads Centrium Heavy Treads > --- UTILITY ---------- Advanced Cryofiber Web Experimental Heat Sink High-capacity Storage Unit Experimental Energy Well Experimental Optical Array Advanced Signal Interpreter Experimental Targeting Computer Precision Energy Filter Experimental Phase Shifter > --- WEAPON ----------- Advanced Variable Charge Gun Nova Cannon Helical Railgun Compact Mass Driver > --- INVENTORY -------- Advanced Heavy Treads Centrium Heavy Treads Precision Matter Filter Advanced Kinecellerator Centrium Light Armor Plating Relay Coupler [NC] Relay Coupler [Proto] Relay Coupler [Proto] Transdimensional Reconstructor Compact HERF Cannon Firepult Compact Linear Accelerator Compact Linear Accelerator Gamma Bomb Array Advanced Micro-nuke Launcher Advanced Remote Datajack Plasma Lance [Rating: 183] Favorites ----------- Power Quantum Reactor Engine Improved Ion Engine Power Core Micro Nuclear Core Reactor Quantum Reactor Propulsion Light Treads Treads Light Treads Leg Flexi-carbon Leg Wheel Compact Wheel Hover Unit Cooled Gravmag System Flight Unit Improved Surge Thruster Utility Huge Storage Unit Device Advanced Cooling System Storage Huge Storage Unit Processor Enhanced Optical Array Hackware Relay Coupler [NC] Protection Improved Light Armor Plating Weapon Light EM Pulse Cannon Energy Gun Gatling Laser Energy Cannon Light EM Pulse Cannon Ballistic Gun Improved Assault Rifle Ballistic Cannon Heavy Linear Accelerator Launcher Grenade Launcher Special Weapon Improved Remote Datajack Impact Weapon Power Maul Slashing Weapon Power Sword Piercing Weapon Kinetic Spear Build | -11 -10 -10 -9 -9 -9 -8 -8 -8 -8 -8 -7 -7 -7 -7 -6 -6 -6 -6 -5 -5 -5 -5 -4 -4 -4 -4 -4 -4 -4 -4 -3 -3 -3 -3 ------- Run | Yrd Mat Min Mat Min Exi Min Mat Gar Mat Gar Fac Gar Fac Gar Fac Was Fac Gar Fac Upp Upp Zhi Pro Fac Gar Fac Ext Cet Arc Hub Res Gar Res Qua Slots Evolved 14 | . . . 2 . . . 2 . . . 2 . . . 2 . . . 2 . . . . 2 . . . . . . 2 . . . Power 1 | . . . . . . . . . . . . . . . . . . . . . . . . . . . . . . . 1 . . . Propulsion 4 | . . . . . . . 1 . . . 1 . . . 1 . . . 1 . . . . . . . . . . . . . . . Utility 7 | . . . 1 . . . 1 . . . . . . . 1 . . . 1 . . . . 2 . . . . . . 1 . . . Weapon 2 | . . . 1 . . . . . . . 1 . . . . . . . . . . . . . . . . . . . . . . . Parts Attached 615 | 2 32 13 28 11 4 2 27 21 12 29 11 28 6 30 18 13 7 16 15 8 1 10 9 1 41 . 21 20 . 8 78 15 48 30 Power 45 | . 2 . 2 . . . 2 1 . 2 2 2 4 1 1 2 . 1 . 1 . . . . 3 . 1 . . . 11 1 3 3 Engine 13 | . 2 . 2 . . . 2 1 . 1 2 . 1 . 1 1 . . . . . . . . . . . . . . . . . . Core 5 | . . . . . . . . . . 1 . 1 1 . . . . . . 1 . . . . . . . . . . . . . 1 Reactor 27 | . . . . . . . . . . . . 1 2 1 . 1 . 1 . . . . . . 3 . 1 . . . 11 1 3 2 Propulsion 77 | 2 2 1 3 . 1 1 3 3 2 2 1 3 1 1 1 1 1 2 2 . 1 3 2 . 6 . 3 3 . 2 2 4 11 7 Treads 53 | 2 2 1 3 . 1 1 3 3 2 2 1 3 1 1 1 1 1 2 2 . . . . . 3 . 2 3 . 2 2 4 3 1 Leg 13 | . . . . . . . . . . . . . . . . . . . . . . . . . . . 1 . . . . . 7 5 Wheel 1 | . . . . . . . . . . . . . . . . . . . . . 1 . . . . . . . . . . . . . Hover 8 | . . . . . . . . . . . . . . . . . . . . . . 3 2 . 2 . . . . . . . . 1 Flight 2 | . . . . . . . . . . . . . . . . . . . . . . . . . 1 . . . . . . . 1 . Utility 203 | . 10 2 7 6 . . 4 2 6 8 3 8 1 5 6 6 3 5 4 3 . 5 2 1 10 . 9 11 . 3 41 4 21 7 Device 102 | . 5 2 3 3 . . . . 1 5 1 5 . 3 3 6 2 3 1 . . 2 1 1 2 . 4 5 . 3 26 1 10 4 Storage 12 | . 2 . . . . . . . . . 1 1 . . . . . . . . . 1 1 . 2 . . . . . 3 . 1 . Processor 13 | . . . . . . . . . . . 1 . . . . . 1 . . 1 . . . . . . . 2 . . 6 . 1 1 Hackware 33 | . . . . . . . . 1 3 2 . 2 1 2 3 . . 2 3 . . . . . 6 . 2 . . . 2 2 2 . Protection 43 | . 3 . 4 3 . . 4 1 2 1 . . . . . . . . . 2 . 2 . . . . 3 4 . . 4 1 7 2 Artifact . | . . . . . . . . . . . . . . . . . . . . . . . . . . . . . . . . . . . Weapon 290 | . 18 10 16 5 3 1 18 15 4 17 5 15 . 23 10 4 3 8 9 4 . 2 5 . 22 . 8 6 . 3 24 6 13 13 Energy Gun 54 | . 6 . 3 1 . . 6 6 1 7 1 3 . 10 . 2 1 1 . . . . . . 2 . . . . . 3 . 1 . Energy Cannon 58 | . 4 5 7 1 . . . . . . . . . . 6 2 . . . 1 . 1 3 . 7 . 2 4 . 1 6 2 2 4 Ballistic Gun 35 | . . . 2 1 2 . 4 . 1 2 1 4 . 4 . . . 1 2 2 . . . . . . 2 2 . . 4 . 1 . Ballistic Cannon 49 | . 2 . . . 1 1 4 7 1 3 . 1 . . . . . 3 1 1 . 1 1 . 9 . 3 . . 2 1 2 4 1 Launcher 26 | . 3 5 3 1 . . . 1 . 3 1 . . . . . . . 1 . . . . . . . . . . . 6 1 . 1 Special Weapon 39 | . 3 . 1 1 . . . 1 1 1 1 2 . 9 4 . . 2 4 . . . 1 . 4 . 1 . . . 2 1 . . Impact Weapon 14 | . . . . . . . 1 . . 1 1 5 . . . . 2 1 1 . . . . . . . . . . . . . . 2 Slashing Weapon 10 | . . . . . . . . . . . . . . . . . . . . . . . . . . . . . . . 1 . 4 5 Piercing Weapon 5 | . . . . . . . 3 . . . . . . . . . . . . . . . . . . . . . . . 1 . 1 . Special Melee Weapon . | . . . . . . . . . . . . . . . . . . . . . . . . . . . . . . . . . . . Unidentified Prototypes 51 | . . . 5 . . . 3 . . . . 1 2 . . 1 2 . . . . 5 . . . . . 3 . 1 14 . 7 7 Corrupted Parts 7 | . . 1 . . . 1 . . . . . . . . . . . . . . . . . . . . . 2 . 2 . . 1 . System Corruption 37 | . . 2 . . . 2 . . . . . . . . . . . . . . . . . . . . . 13 . 10 . . 10 . Parts Lost 83 | . 3 1 . . . . . 1 1 1 2 3 . 3 2 . . . 6 . 2 . . . 7 . 5 1 . 8 3 3 15 16 Power 10 | . 1 . . . . . . 1 . . 1 1 . . 1 . . . . . . . . . . . 1 . . . 1 . . 3 Propulsion 24 | . 1 1 . . . . . . . . . 1 . 1 . . . . 2 . 2 . . . 3 . 1 . . . . 2 5 5 Utility 31 | . . . . . . . . . 1 . . . . . . . . . 3 . . . . . 3 . 2 1 . 6 2 . 6 7 Weapon 18 | . 1 . . . . . . . . 1 1 1 . 2 1 . . . 1 . . . . . 1 . 1 . . 2 . 1 4 1 Highest Loss Streak 8 | . 1 1 . . . . . 1 1 1 2 2 . 1 1 . . . 6 . 1 . . . 3 . 4 1 . 8 2 1 8 7 To Critical Strikes 1 | . . . . . . . . . . . . . . . . . . . . . . . . . . . . . . . . 1 . . Average Slot Usage (%) 82 | . 99 99 99 100 100 93 88 73 73 96 97 79 75 75 78 75 80 68 58 36 48 40 68 73 69 73 74 79 84 78 78 81 78 81 Engine 4 | . 14 14 10 11 11 11 9 7 . . 1 . . . . 1 . . . . . . . . . . . . . . . . . . Reactor 3 | . . . . . . . . . . . . 3 6 7 5 4 6 5 4 . . . . . 3 5 4 5 5 5 8 7 8 3 Treads 18 | . 27 27 22 22 22 22 26 27 27 27 30 19 15 15 19 20 20 19 16 5 4 . . . 7 15 10 12 15 15 14 15 10 . Leg 1 | . . . . . . . . . . . . . . . . . . . . . . . . . . . 2 1 . . . . 7 21 Device 8 | . 10 12 11 4 . . . . 1 12 7 4 4 7 4 12 13 6 8 . . 3 7 10 6 5 8 9 10 9 18 12 13 25 Storage 7 | . 15 15 11 11 11 11 9 9 9 9 7 7 7 7 6 6 6 6 4 . . 2 2 5 7 5 5 5 5 5 4 6 2 . Processor 3 | . . . . . . . . . . . 6 7 7 . . . 1 6 5 6 11 11 11 10 10 10 10 13 10 10 9 10 5 1 Hackware 4 | . . . . . . . . 8 15 12 7 3 2 6 14 6 4 5 6 5 5 5 5 5 13 21 13 . . . . 4 7 . Protection 6 | . 1 . 10 17 22 22 26 14 4 1 . . . . . . . . . 7 9 2 2 . . . 3 12 15 14 2 6 6 7 Energy Gun 6 | . 16 . 12 2 11 7 1 . 3 13 3 8 7 23 11 6 16 3 . . . . . . 1 . . . . . 2 . . . Energy Cannon 5 | . 9 26 16 24 2 . . . . . . . . . 9 8 4 . . . . 1 2 5 1 . 3 5 10 6 7 3 2 . Ballistic Gun 3 | . . . 3 4 16 15 7 . 3 8 4 4 7 2 . . . 1 3 4 10 . . . . . 4 8 10 6 2 3 . . Ballistic Cannon 2 | . . . . . . 3 4 7 5 1 15 3 . . . . . 6 . 3 4 2 4 5 3 5 4 2 . 3 . 2 2 1 Special Weapon 1 | . . . 1 1 2 . . . 3 . 4 4 7 3 3 6 . 1 . . . . 3 5 2 5 2 . . . . 3 2 . Peak Build Rating 183 | 6 12 14 23 28 32 51 59 64 64 66 64 82 81 89 92 103 102 119 131 67 67 93 101 104 129 112 130 157 156 165 183 171 158 153 Average Rating 76 | 5 9 12 21 24 29 37 48 57 55 51 61 71 79 83 87 97 96 111 122 52 61 52 84 99 102 112 121 147 156 155 166 161 130 132 On Entrance 77 | 6 6 12 14 22 23 32 51 59 64 62 53 61 81 78 83 83 94 102 119 27 67 16 67 99 104 112 112 129 156 156 90 171 158 133 Naked Turns 62 | . . . . . . . . . . . . . . . . . . . . . . . . . . . . . . . . . 51 11 Heaviest Build 227 | 14 96 95 104 105 103 153 172 172 160 148 109 170 170 178 184 192 182 227 213 53 53 58 49 51 117 93 128 121 110 125 161 138 148 80 Greatest Support 240 | 40 40 40 43 43 43 40 63 70 73 73 95 150 150 150 172 172 180 185 215 60 60 33 56 56 210 210 210 240 240 240 240 240 206 128 Greatest Overweight (x) 7 | . 2 2 2 2 2 3 3 2 2 2 1 1 1 1 1 1 1 1 . 7 3 1 . . 1 . 1 1 . . . 1 1 1 Average Overweight (x) . | . 1 2 2 2 2 2 1 1 1 1 1 . 1 1 . . . . . . . . . . . . . . . . . . . . Largest Inventory Capacity 30 | 8 25 25 25 25 25 25 25 25 25 25 25 30 30 30 30 30 30 30 30 5 5 5 5 5 20 20 20 20 20 20 20 20 20 5 Average Capacity 23 | 8 18 25 25 25 25 25 25 25 25 25 25 28 30 30 30 30 30 30 28 5 5 5 5 5 19 20 20 20 20 20 20 20 15 5 Most Carried 30 | 6 25 25 25 25 25 25 25 25 25 25 25 30 30 30 30 30 30 30 30 5 5 5 5 5 20 20 20 20 20 20 20 20 20 5 Average Carried 22 | 3 17 24 24 24 24 24 24 24 24 24 24 28 29 29 29 29 29 29 27 4 4 4 4 5 17 20 18 19 20 19 19 18 14 4 Final Capacity 30 | 8 25 25 25 25 25 25 25 25 25 25 25 30 30 30 30 30 30 30 5 5 5 5 5 5 20 20 20 20 20 20 20 20 5 5 Final Carried 30 | 5 25 24 25 24 25 25 25 25 25 25 25 30 30 30 27 30 30 30 4 5 4 5 5 5 20 20 19 20 20 18 20 19 5 1 Class Distribution -------------------- 24% | Tank 14% | Mutant 11% | Botlord-Gunner 9% | Botlord-Skirmisher 9% | Bothacker-Gunner 5% | Bothacker-Tank 4% | Bothacker-Skirmisher 4% | Scavenger-Mutant 4% | Botlord-Tank 3% | Scavenger-Tank Dominant Class ---------------- Mutant | -10/Materials Mutant | -10/Mines Tank | -9/Materials Tank | -9/Mines Tank | -9/Exiles Tank | -8/Mines Tank | -8/Materials Skirmisher | -8/Garrison Hacker-Skirmisher | -8/Materials Bothacker-Skirmisher | -8/Garrison Bothacker-Skirmisher | -7/Factory Bothacker-Gunner | -7/Garrison Bothacker-Gunner | -7/Factory Botlord-Gunner | -7/Garrison Botlord-Skirmisher | -6/Factory Botlord-Gunner | -6/Waste Botlord-Gunner | -6/Factory Botlord-Tank | -6/Garrison Botlord-Gunner | -5/Factory Tank | -5/Upper Caves Derelict-Tank | -5/Upper Caves Mutant | -5/Zhirov Derelict-Skirmisher | -4/Proximity Caves Derelict-Skirmisher | -4/Factory Botlord-Skirmisher | -4/Garrison Botlord-Skirmisher | -4/Factory Botlord-Skirmisher | -4/Extension Scavenger-Tank | -4/Cetus Scavenger-Tank | -4/Archives Scavenger-Tank | -4/Hub_04(d) Bothacker-Tank | -3/Research Bothacker-Tank | -3/Garrison Bothacker-Tank | -3/Research Scavenger-Mutant | -3/Quarantine Resources | -11 -10 -10 -9 -9 -9 -8 -8 -8 -8 -8 -7 -7 -7 -7 -6 -6 -6 -6 -5 -5 -5 -5 -4 -4 -4 -4 -4 -4 -4 -4 -3 -3 -3 -3 ----------- Run | Yrd Mat Min Mat Min Exi Min Mat Gar Mat Gar Fac Gar Fac Gar Fac Was Fac Gar Fac Upp Upp Zhi Pro Fac Gar Fac Ext Cet Arc Hub Res Gar Res Qua Matter Collected 13406 | 292 470 129 542 106 . 94 478 235 62 667 51 1039 . 687 241 143 68 839 566 177 422 79 211 . 740 . 1517 310 . 155 1373 399 992 322 Remotely 126 | . . . . . . . . . . 126 . . . . . . . . . . . . . . . . . . . . . . . . Salvage Created 20370 | 149 1249 423 1213 198 . 31 597 957 100 749 23 1006 26 667 604 1736 200 604 834 121 . 101 184 . 755 . 1414 500 . 872 2251 882 707 1217 Parts 862 | 11 80 34 78 10 . 1 30 50 6 45 4 29 . 26 35 11 10 20 36 4 . . 6 . 25 . 49 21 . 27 98 36 24 56 Haulers Intercepted 9 | . 2 . 5 . . . 1 . . . . . . . . . . . 1 . . . . . . . . . . . . . . . Recyclers Shooed 12 | 1 6 . . . . . 1 . . . 1 . . . 2 . . . . . . . . . . . . . . . . . 1 . Parts Field Recycled . | . . . . . . . . . . . . . . . . . . . . . . . . . . . . . . . . . . . Retrieved Matter . | . . . . . . . . . . . . . . . . . . . . . . . . . . . . . . . . . . . Parts Self-Destructed 5 | . . . . . . . . . . . . . . . . . . . . . 1 . 4 . . . . . . . . . . . Prevented 2 | . . . . . . . . . . . . . . . . . . . . . 2 . . . . . . . . . . . . . Kills | -11 -10 -10 -9 -9 -9 -8 -8 -8 -8 -8 -7 -7 -7 -7 -6 -6 -6 -6 -5 -5 -5 -5 -4 -4 -4 -4 -4 -4 -4 -4 -3 -3 -3 -3 ------- Run | Yrd Mat Min Mat Min Exi Min Mat Gar Mat Gar Fac Gar Fac Gar Fac Was Fac Gar Fac Upp Upp Zhi Pro Fac Gar Fac Ext Cet Arc Hub Res Gar Res Qua Combat Hostiles Destroyed 339 | . 22 14 18 5 . 1 11 32 2 30 3 10 . 13 12 6 2 13 16 . . . 7 . 12 . 20 6 . 10 27 15 15 17 Melee 18 | . . . . . . . 2 . . . . . . . . . . . . . . . . . . . . . . . . . 1 15 Guns 68 | . 11 . 3 . . . . . . 9 . 7 . 10 5 . 2 5 8 . . . . . . . . . . . 4 4 . . Cannons 134 | . 5 5 6 2 . 1 8 32 2 5 1 3 . . 7 . . 7 3 . . . 2 . 5 . 16 3 . 2 4 5 10 . AOE 58 | . 5 9 7 . . . 1 . . 16 2 . . . . . . . 5 . . . 4 . 1 . . . . . 4 4 . . Classes Destroyed 27 | 3 5 . 3 1 . . 2 3 . . . . . . . 1 . 1 1 2 . . 1 . . . . . . 1 2 . 1 . Worker 24 | 1 3 2 . . . . 1 . . . 1 . . . 1 . 1 . 2 . . . . . . . . . . 5 1 . 5 1 Builder 8 | . 3 2 1 . . . . . . . 1 . . . . . . . 1 . . . . . . . . . . . . . . . Tunneler 7 | 3 1 3 . . . . . . . . . . . . . . . . . . . . . . . . . . . . . . . . Hauler 9 | . 2 . 5 . . . 1 . . . . . . . . . . . 1 . . . . . . . . . . . . . . . Recycler 12 | 1 5 1 3 . . . 1 . . . . . . . 1 . . . . . . . . . . . . . . . . . . . Minesweeper 1 | . . . . . . . . . . . . . . . . . . . . 1 . . . . . . . . . . . . . . Mechanic 2 | . . . 1 . . . . . . . . . . . . . . . . . . . . . . . 1 . . . . . . . Operator 3 | . . . 2 . . . 1 . . . . . . . . . . . . . . . . . . . . . . . . . . . Drone 1 | . . . . . . . . . . . . . . . . . . . . . . . 1 . . . . . . . . . . . Watcher 17 | . 3 . 5 . . . 3 . 1 . . . 1 . . . . . . . . . . . . . 3 1 . . . . . . Swarmer 69 | . 10 9 7 . . . . 3 . 11 3 4 . 2 3 . 2 . 5 . . . 5 . . . . . . . . 5 . . Cutter 3 | . . . . . . . . . . . . . . . . . . 1 . . . . . . 2 . . . . . . . . . Saboteur 1 | . . . . . . . . . . . . . . . . . . . . . . . . . . . . . . . . . 1 . Grunt 95 | . 12 5 6 4 . 1 6 15 2 10 . . . 2 3 . . 6 5 . . . . . 3 . 4 . . 2 3 1 1 4 Brawler 6 | . . . . . . . . 1 . . . . . 2 . . . 2 1 . . . . . . . . . . . . . . . Duelist 7 | . . . . . . . 1 3 . . . 1 . 1 . . . . 1 . . . . . . . . . . . . . . . Protector 1 | . . . . . . . . . . . . . . . . . . . . . . . . . . . . . . 1 . . . . Sentry 43 | . . . 5 . . . 2 5 . 3 . . . 4 1 1 . 1 2 . . . . . . . 11 . . 1 5 1 1 . Demolisher 4 | . . . . 1 . . . . . . . . . . . . . . 1 . . . . . . . . . . . 1 . 1 . Specialist 5 | . . . . . . . . . . . . . . . . . . . 1 . . . . . . . . . . . . . 1 3 Hunter 36 | . . . . . . . 2 . . 2 . 2 . . . . . 1 . . . . . . 3 . 5 . . 4 6 5 4 2 Programmer 38 | . . . . . . . . 3 . 4 . 3 . 3 5 . . 2 . . . . 1 . 2 . . . . . 2 3 4 6 Behemoth 5 | . . . . . . . . 2 . . . . . . . . . . . . . . . . 3 . . . . . . . . . Compactor 6 | . . . . . . . . . . . . . . . . 6 . . . . . . . . . . . . . . . . . . Cetus Guard 6 | . . . . . . . . . . . . . . . . . . . . . . . . . . . . 6 . . . . . . Quarantine Guard 2 | . . . . . . . . . . . . . . . . . . . . . . . . . . . . . . . . . . 2 Lightning 2 | . . . . . . . . . . . . . . . . . . . . . . . . . . . . . . 2 . . . . Striker 11 | . . . . . . . . . . . . . . . . . . . . . . . . . . . . . . . 9 . 2 . Executioner 1 | . . . . . . . . . . . . . . . . . . . . . . . . . . . . . . . 1 . . . Decomposer 1 | . . . . . . . . . . . . . . . . . . . . 1 . . . . . . . . . . . . . . Samaritan 2 | . . . . . . . . . . . . . . . . . . . . 2 . . . . . . . . . . . . . . Wasp 1 | . . . . . . . . . . . . . . . . . . 1 . . . . . . . . . . . . . . . . Savage 1 | . . . . . . . . . . 1 . . . . . . . . . . . . . . . . . . . . . . . . Martyr 2 | . . . . . . . . . . . . . . . . . 2 . . . . . . . . . . . . . . . . . Best Kill Streak 10 | 2 3 5 5 2 . 1 3 6 3 10 4 5 1 3 4 4 3 2 5 1 . . 5 . 4 . 2 4 . 9 5 5 5 3 Combat Bots Only 10 | . 3 3 4 2 . 1 2 6 2 10 3 5 . 3 3 4 2 2 5 . . . 5 . 4 . 2 4 . 5 5 5 4 3 Max Kills in Single Turn 5 | 1 3 2 2 1 . 1 1 1 1 3 2 2 1 1 2 1 2 2 3 1 . . 4 . 1 . 1 1 . 5 2 3 1 1 Gunslinging . | . . . . . . . . . . . . . . . . . . . . . . . . . . . . . . . . . . . Exploded 3 | . 3 2 2 . . . 1 . . 3 1 . . . . . . . 3 . . . 3 . 1 . . . . . 2 3 . . Melee 1 | . . . . . . . 1 . . . . . . . . . . . . . . . . . . . . . . . . . 1 1 Uniques/NPCs Destroyed . | . . . . . . . . . . . . . . . . . . . . . . . . . . . . . . . . . . . Combat | -11 -10 -10 -9 -9 -9 -8 -8 -8 -8 -8 -7 -7 -7 -7 -6 -6 -6 -6 -5 -5 -5 -5 -4 -4 -4 -4 -4 -4 -4 -4 -3 -3 -3 -3 -------- Run | Yrd Mat Min Mat Min Exi Min Mat Gar Mat Gar Fac Gar Fac Gar Fac Was Fac Gar Fac Upp Upp Zhi Pro Fac Gar Fac Ext Cet Arc Hub Res Gar Res Qua Hostile Shots Fired 2446 | . 86 27 44 12 . 2 39 73 3 71 13 77 12 105 82 . 25 9 253 . 29 . 12 6 128 . 114 32 . 278 176 130 212 396 Missed 803 | . 30 5 12 5 . . 10 22 . 20 3 23 4 26 28 . 6 2 75 . 6 . 1 4 47 . 33 3 . 64 64 37 68 205 Damage Taken 32245 | . 642 273 488 200 . 29 393 1020 58 750 258 1094 123 1109 757 . 299 173 2834 . 464 . 187 44 1731 . 1917 743 . 4469 2652 1567 3940 4031 Core 3406 | . 117 72 47 9 . . 16 85 . 83 23 82 . 146 34 . 44 . 178 . 229 . 60 . 285 . 123 . . 534 152 90 630 367 Absorbed by Shields 1059 | . . . . . . . . 9 . . . . . . . . . 79 305 . . . . . . . 113 48 . . 505 . . . Reduced by Siege Mode 852 | . . . . . . . . . . . . . . . . . . . . . . . . . . . 80 99 . 182 90 186 215 . Ignored by Resistances 112 | . . . . . . . 50 30 . . . . . . . . . . . . . . . . . . . . . 32 . . . . Regen/Repaired (Parts) 1371 | . . . . . . . . . . . . . . . . 176 127 37 66 . . . . . . . 278 . . . 108 . . 579 Core Remaining (%) 62 | 100 . 24 . . . 86 . . . 66 . . . 64 . . . 90 . . . . 53 . . . . . . 18 . . . . Volleys Fired 1337 | 18 113 32 62 16 . 4 4 20 2 76 17 156 3 70 40 22 3 55 54 19 9 4 7 1 66 3 151 24 . 31 103 65 80 7 Largest 4 | 2 2 2 3 3 . 2 3 1 1 3 2 4 1 4 4 3 3 3 1 1 3 1 2 1 3 1 2 2 . 2 4 3 2 1 Hottest 310 | 100 112 112 168 168 . 46 91 75 5 156 88 193 7 310 225 250 249 249 83 250 135 250 250 83 268 83 188 188 . 250 266 186 250 250 Shots Fired 2075 | 36 200 48 128 34 . 13 40 95 7 141 21 208 3 129 91 25 9 82 54 19 13 4 8 1 84 3 172 29 2 36 148 104 80 8 Gun 860 | 36 145 . 42 2 . 8 10 19 . 109 2 151 . 104 30 2 9 39 26 16 7 . . . 7 . 4 2 2 3 44 40 1 . Cannon 892 | . 35 31 71 26 . 5 30 75 5 14 8 22 . . 50 12 . 35 7 3 6 4 8 1 53 3 108 27 . 33 81 56 75 8 Launcher 76 | . 6 17 7 . . . . 1 . 14 3 . . . . . . . 3 . . . . . . . . . . . 22 3 . . Special 247 | . 14 . 8 6 . . . . 2 4 8 35 3 25 11 11 . 8 18 . . . . . 24 . 60 . . . 1 5 4 . Kinetic 701 | . . . 9 2 . 13 36 75 5 47 10 133 . 19 . . . 37 33 18 13 3 4 1 33 3 71 5 2 6 29 45 46 3 Thermal 753 | 36 139 . 8 6 . . 1 19 . 76 . 71 . 85 80 14 9 37 . 1 . 1 3 . 23 . . . . 4 57 48 30 5 Explosive 53 | . 6 17 7 . . . . . . 14 3 . . . . . . . 3 . . . . . . . . . . . . 3 . . Electromagnetic 380 | . 55 31 104 26 . . 3 1 . . . . . . . . . . . . . . 1 . 4 . 41 24 . 26 61 3 . . Robot Hit Streak 43 | 4 26 4 10 6 . 4 9 22 29 43 4 25 3 15 18 9 5 7 17 8 4 5 2 . 9 . 19 7 . 6 11 29 26 5 Robot Miss Streak 9 | 3 4 1 5 2 . 3 3 1 . 4 9 5 . 4 8 3 5 4 6 2 6 1 2 . 5 . 2 2 1 3 4 2 3 4 Penetration Max 1 | . . . . . . . . . . . . . . . . . . 1 . . . . . . . . . . . 1 . . . . Secondary Targets 7 | . 1 . . . . . . . . 2 . . . 1 1 . 1 1 . . . . . . . . . . . . . . . . Max Gunslinging Chain 1 | . 1 . . . . . . . . 1 . . . 1 1 . 1 1 . . . . . . . . . . . . . . . . Autonomous 141 | . . . . . . 5 30 75 5 14 . 12 . . . . . . . . . . . . . . . . . . . . . . Shots Hit Robots 1322 | 18 108 18 73 19 . 8 42 71 7 62 12 172 4 79 53 20 10 32 41 12 7 2 3 . 33 . 115 21 . 25 83 59 48 65 Core Hits 700 | 6 49 30 49 4 . 2 17 28 2 49 11 78 . 32 34 11 5 19 33 7 3 4 11 . 18 . 25 14 . 20 61 27 24 27 Critical Kills 7 | . . . . . . . . . . . . 1 . . . 1 . . . . . . . . . . . . . . 1 3 1 . Critical Parts Destroyed 2 | . . . . . . . . . . . . . . . . . . . . . . . . . . . . . . . 2 . . . Critical Strikes 60 | 1 5 . . . . . 3 4 2 4 . 1 . 5 . 1 1 2 1 . . . . . 1 . 6 . . . 6 4 8 5 Burn 13 | 1 4 . . . . . . . . 3 . . . 5 . . . . . . . . . . . . . . . . . . . . Meltdown 3 | . . . . . . . . . . . . . . . . 1 . . . . . . . . . . . . . . . 1 1 . Destroy 8 | . . . . . . . . . . . . 1 . . . . . . . . . . . . . . . . . . 5 2 . . Blast 27 | . . . . . . . 3 4 2 1 . . . . . . . 2 1 . . . . . 1 . 5 . . . . 1 7 . Corrupt 3 | . 1 . . . . . . . . . . . . . . . . . . . . . . . . . 1 . . . 1 . . . Smash 1 | . . . . . . . . . . . . . . . . . 1 . . . . . . . . . . . . . . . . . Sever 2 | . . . . . . . . . . . . . . . . . . . . . . . . . . . . . . . . . . 2 Impale 3 | . . . . . . . . . . . . . . . . . . . . . . . . . . . . . . . . . . 3 Melee Attacks 210 | . . . . . . . 22 . . 2 3 39 3 . . . 8 1 3 . . . . . . . . . . . 4 . 11 114 Kinetic 1 | . . . . . . . . . . . . . . . . . . . . . . . . . . . . . . . . . . 1 Impact 76 | . . . . . . . 17 . . 2 3 39 3 . . . 8 1 3 . . . . . . . . . . . . . . . Slashing 80 | . . . . . . . . . . . . . . . . . . . . . . . . . . . . . . . 4 . 9 67 Piercing 53 | . . . . . . . 5 . . . . . . . . . . . . . . . . . . . . . . . . . 2 46 Sneak Attacks 13 | . . . . . . . 4 . . . . . . . . . 5 . . . . . . . . . . . . . 1 . 2 1 Combat Hostiles . | . . . . . . . . . . . . . . . . . . . . . . . . . . . . . . . . . . . Follow-up Attacks 17 | . . . . . . . . . . . . . . . . . . . . . . . . . . . . . . . . . . 17 Damage Inflicted 54604 | 237 1986 1325 2436 487 . 393 2392 5827 412 3438 436 3106 64 1415 1223 870 550 1596 2732 333 326 113 399 . 1758 . 3375 782 . 1947 4158 3216 3360 3912 Guns 11562 | 237 1175 . 599 . . 61 108 . . 886 19 2400 . 1415 718 34 172 446 1461 197 75 . . . 37 . 58 8 . 72 833 551 . . Cannons 27337 | . 432 454 948 426 . 332 1716 5827 412 1182 132 187 . . 481 373 . 1150 443 81 246 70 151 . 1213 . 3317 774 . 964 1829 1408 2622 167 Explosions 10283 | . 379 860 889 61 . . 35 . . 1370 285 . . . . 463 . . 804 55 . 43 248 . 508 . . . . 911 1416 1257 463 236 Melee 4893 | . . . . . . . 533 . . . . 73 64 . . . 378 . . . . . . . . . . . . . 80 . 273 3492 Ramming 83 | . . 11 . . . . . . . . . . . . 24 . . . 24 . 5 . . . . . . . . . . . 2 17 Kinetic 22929 | . . . 88 . . 393 1778 5827 412 1456 151 1899 . 279 . . . 1150 1904 263 321 70 91 . 883 . 2163 75 . 138 550 714 2285 39 Thermal 12587 | 237 1085 47 230 61 . . 35 . . 612 . 1134 . 1136 1199 870 172 446 . 70 . 43 248 . 875 . . . . 574 1311 1116 683 403 Explosive 5678 | . 373 813 659 . . . . . . 1370 285 . . . . . . . 804 . . . . . . . . . . . . 1257 117 . Electromagnetic 8473 | . 528 454 1459 426 . . 46 . . . . . . . . . . . . . . . 60 . . . 1212 707 . 1235 2217 129 . . Impact 868 | . . . . . . . 353 . . . . 73 64 . . . 378 . . . . . . . . . . . . . . . . . Slashing 2683 | . . . . . . . . . . . . . . . . . . . . . . . . . . . . . . . 80 . 236 2367 Piercing 1303 | . . . . . . . 180 . . . . . . . . . . . . . . . . . . . . . . . . . 37 1086 Highest Corruption 48 | . . 2 . . . 2 . . . . . . . 4 3 3 3 3 12 12 12 12 12 . 5 5 8 21 21 48 3 6 25 42 Average Corruption 7 | . . 2 . . . 2 . . . . . . . 3 2 3 3 3 1 12 12 12 12 . 3 5 6 17 21 22 1 5 11 35 Corruption Purged . | . . . . . . . . . . . . . . . . . . . . . . . . . . . . . . . . . . . Corruption Blocked 30 | . . . . . . . . . . . . . . . . . . . . . . . . . . . . 14 . . 16 . . . Effects 529 | . . . . . . . . . . . . . . 48 17 19 13 45 4 25 30 6 10 . 24 4 86 24 4 20 13 16 57 64 Message Errors 132 | . . . . . . . . . . . . . . 13 4 2 3 11 . 4 8 2 2 . 4 2 23 4 1 5 4 4 20 16 Matter Fused 118 | . . . . . . . . . . . . . . 12 4 6 5 13 3 4 5 3 3 . 3 2 16 8 1 4 2 3 10 11 Heat Flow Errors 58 | . . . . . . . . . . . . . . 6 . 4 2 5 . 5 3 . 3 . 2 . 9 4 . 3 1 . 3 8 Energy Discharges 57 | . . . . . . . . . . . . . . 2 2 3 1 2 . 5 4 1 . . 3 . 15 3 . 2 3 3 4 4 Parts Rejected 5 | . . . . . . . . . . . . . . . . . . . 1 . . . . . . . . . . . . 1 . 3 Parts Fused 6 | . . . . . . . . . . . . . . . . . . 1 . . . . . . 1 . 2 . . . . 1 1 . Data Loss (minor) 66 | . . . . . . . . . . . . . . 7 3 1 2 7 . 5 5 . . . 6 . 9 1 . 1 1 3 6 9 Data Loss (major) 29 | . . . . . . . . . . . . . . 2 1 1 . 2 . 1 3 . 2 . 2 . 3 . . 1 . . 2 9 Misfires 26 | . . . . . . . . . . . . . . 2 3 1 . 1 . . . . . . 3 . 6 2 2 . 1 . 4 1 Alerts 12 | . . . . . . . . . . . . . . 2 . 1 . 2 . 1 1 . . . . . 2 . . 1 . 1 . 1 Misdirections 6 | . . . . . . . . . . . . . . . . . . . . . 1 . . . . . . . . 1 . . 2 2 Weapon Failures 14 | . . . . . . . . . . . . . . 2 . . . 1 . . . . . . . . 1 2 . 2 1 . 5 . Overload Shots . | . . . . . . . . . . . . . . . . . . . . . . . . . . . . . . . . . . . Overflow Damage 2975 | . 10 11 48 . . 22 245 657 94 115 31 20 29 . 17 . 62 115 116 . 9 55 34 . 130 . 163 . . 16 27 231 386 332 Projectiles 1994 | . . 3 31 . . 22 214 657 94 105 . . . . 17 . . 115 . . 9 55 30 . 130 . 163 . . 1 2 87 259 . Explosions 361 | . 10 8 17 . . . . . . 10 31 . . . . . . . 116 . . . 4 . . . . . . 15 5 144 1 . Melee 620 | . . . . . . . 31 . . . . 20 29 . . . 62 . . . . . . . . . . . . . 20 . 126 332 Knockbacks 71 | . . . . . . 4 5 12 3 7 2 8 . . . . 2 4 2 . 2 . . . 3 . 6 2 . . . . 9 . Impact 3 | . . . . . . . 1 . . . . . . . . . 2 . . . . . . . . . . . . . . . . . Kinetic 58 | . . . . . . 3 4 10 2 4 2 7 . . . . . 3 2 . 2 . . . 3 . 6 1 . . . . 9 . Secondary 10 | . . . . . . 1 . 2 1 3 . 1 . . . . . 1 . . . . . . . . . 1 . . . . . . Self-Inflicted Damage 784 | . 96 70 93 . . . . . . 23 30 . . . . . . . 4 . . . 5 . 47 . . . . 105 66 . 75 170 Shots 38 | . 5 4 3 . . . . . . 2 1 . . . . . . . . . . . 1 . 3 . . . . 1 5 . 1 12 Rammed 11 | . . 1 . . . . . . . . . . . . 3 . . . 4 . 2 . . . . . . . . . . . 1 . Targets Rammed 12 | . . 1 . . . . . . . . . . . . 3 . . . 4 . 2 . . . . . . . . . . . 1 1 Kicked 1 | . . . . . . . . . . . . . . . . . . . . . . . . . . . . . . . . . . 1 Crushed . | . . . . . . . . . . . . . . . . . . . . . . . . . . . . . . . . . . . Highest Temperature 550 | 351 264 165 457 267 . . 107 192 . 192 18 524 . 302 349 235 157 229 217 235 126 176 210 7 196 . 285 262 4 550 373 . 436 205 Average Temperature 93 | 130 71 58 68 95 . . 36 50 . 55 8 121 . 88 79 87 55 52 56 79 51 54 81 6 84 . 89 98 3 221 155 . 164 104 Received Heat Transfer 3294 | . 186 36 150 42 . 18 207 288 54 234 . 153 54 162 138 . . 35 341 . 189 . . 9 126 . 169 36 . 159 81 27 286 114 Effects 26 | 1 . . . . . . . . . . . 4 . 1 3 . . . . . . . . . . . 1 3 . 9 . . 3 1 Shutdowns 4 | . . . . . . . . . . . . 1 . . 1 . . . . . . . . . . . . . . 2 . . . . Energy Bleed 8 | . . . . . . . . . . . . 1 . 1 . . . . . . . . . . . . 1 . . 3 . . 1 1 Interference 7 | . . . . . . . . . . . . . . . 2 . . . . . . . . . . . . 3 . 2 . . . . Matter Decay 2 | 1 . . . . . . . . . . . . . . . . . . . . . . . . . . . . . . . . 1 . Short Circuit 1 | . . . . . . . . . . . . 1 . . . . . . . . . . . . . . . . . . . . . . Damage (minor) 2 | . . . . . . . . . . . . 1 . . . . . . . . . . . . . . . . . . . . 1 . Damage (major) 1 | . . . . . . . . . . . . . . . . . . . . . . . . . . . . . . 1 . . . . Damage (core) 1 | . . . . . . . . . . . . . . . . . . . . . . . . . . . . . . 1 . . . . Siege Activations 23 | . . . . . . . . . . . . 1 . . . . . 2 . . . . . . . . 2 2 . 2 6 4 4 . Total Turns 330 | . . . . . . . . . . . . 13 . . . . . 8 . . . . . . . . 48 39 . 43 58 79 42 . Longest Duration 34 | . . . . . . . . . . . . 13 . . . . . 6 . . . . . . . . 28 27 . 32 25 34 25 . Robots Corrupted 38 | . 1 . 2 3 . . 1 . . . . . . . . . 1 1 . . . . . . . . 5 3 . 5 15 1 . . Combat Hostiles 35 | . 1 . 2 3 . . . . . . . . . . . . . 1 . . . . . . . . 4 3 . 5 15 1 . . Parts Fried 69 | . 3 3 11 . . . 1 . . . . 1 . . . . 1 2 . . . . 2 . . . 7 9 . 7 20 2 . . Impact Corruptions 9 | . . . . . . . 2 1 . . . 1 1 . . . 2 1 . . . . . . . . 1 . . . . . . . Robots Melted 28 | . . . . . . . . . . . . . . 3 . 7 . . . 1 . . 1 . 6 . . . . 3 . 1 4 2 Combat Hostiles 26 | . . . . . . . . . . . . . . 3 . 6 . . . . . . 1 . 6 . . . . 3 . 1 4 2 Parts Melted 140 | 2 11 . . . . . . . . 6 . 2 . 8 9 26 . 2 . 2 . . 8 . 17 . 6 . . 14 5 4 11 7 Heat Transferred 32662 | 777 3441 100 250 50 . . 50 . . 1620 . 2144 . 3074 2179 4106 298 832 . 400 . 140 1760 . 3357 . . . . 1640 1223 999 2665 1557 Parts Sabotaged 3 | . . . . . . . . . . . . . . . 2 . . . 1 . . . . . . . . . . . . . . . Parts Stolen . | . . . . . . . . . . . . . . . . . . . . . . . . . . . . . . . . . . . Parts Stripped . | . . . . . . . . . . . . . . . . . . . . . . . . . . . . . . . . . . . Power Chain Reactions 15 | . 1 1 6 1 . . 1 . . . . . . . . . . . . . . . . . . . . . . . 5 . . . Alert | -11 -10 -10 -9 -9 -9 -8 -8 -8 -8 -8 -7 -7 -7 -7 -6 -6 -6 -6 -5 -5 -5 -5 -4 -4 -4 -4 -4 -4 -4 -4 -3 -3 -3 -3 ------- Run | Yrd Mat Min Mat Min Exi Min Mat Gar Mat Gar Fac Gar Fac Gar Fac Was Fac Gar Fac Upp Upp Zhi Pro Fac Gar Fac Ext Cet Arc Hub Res Gar Res Qua Peak Influence 2658 | 25 345 325 260 151 . 93 217 1387 691 1437 856 1687 946 1421 822 245 177 1897 2658 . . . . 286 809 424 290 258 251 455 416 792 582 384 Initial 995 | . 16 34 107 101 . . 35 126 676 202 753 590 885 508 745 233 . 39 995 . . . . 219 200 424 191 62 23 87 201 312 445 250 Average 446 | 11 114 73 125 36 . 17 66 794 544 915 808 1089 866 877 680 82 59 1020 1720 . . . . 244 485 414 115 142 103 201 159 532 456 181 Maximum Alert Level 5 | . 1 1 1 . . . 1 4 2 4 3 5 3 4 3 1 . 5 5 . . . . 1 3 2 1 1 1 2 2 3 2 1 Low Security (%) 44 | 100 69 89 70 100 . 100 99 4 . . . . . . . 71 100 8 . . . . . . . . 82 89 71 82 60 . . 53 Level 1 14 | . 30 10 29 . . . . 7 36 12 . . . . . 28 . 2 . . . . . 100 29 22 17 10 28 6 38 18 19 46 Level 2 13 | . . . . . . . . 27 63 12 . 2 . 41 55 . . 14 . . . . . . 62 77 . . . 11 . 56 80 . Level 3 15 | . . . . . . . . 40 . 32 100 56 100 29 44 . . 39 26 . . . . . 8 . . . . . . 24 . . Level 4 8 | . . . . . . . . 19 . 42 . 34 . 29 . . . 15 22 . . . . . . . . . . . . . . . Level 5 1 | . . . . . . . . . . . . 5 . . . . . 19 . . . . . . . . . . . . . . . . High Security 1 | . . . . . . . . . . . . . . . . . . . 50 . . . . . . . . . . . . . . . Max Security . | . . . . . . . . . . . . . . . . . . . . . . . . . . . . . . . . . . . Squads Dispatched 85 | . 6 . 4 . . . 2 . 1 . 3 . 2 . 5 . . . 18 . . . . 1 . 2 3 . . 4 4 . 28 2 Investigation 18 | . 4 . 1 . . . 1 . 1 . 1 . . . 1 . . . 1 . . . . 1 . . 1 . . 1 3 . 2 . Extermination 8 | . . . . . . . . . . . 1 . 1 . 2 . . . 1 . . . . . . . . . . 1 . . 1 1 Reinforcement 28 | . 2 . 3 . . . 1 . . . 1 . . . . . . . 2 . . . . . . 2 2 . . 2 1 . 11 1 Assault 27 | . . . . . . . . . . . . . . . 2 . . . 14 . . . . . . . . . . . . . 11 . Garrison 4 | . . . . . . . . . . . . . 1 . . . . . . . . . . . . . . . . . . . 3 . Intercept . | . . . . . . . . . . . . . . . . . . . . . . . . . . . . . . . . . . . Searches Triggered . | . . . . . . . . . . . . . . . . . . . . . . . . . . . . . . . . . . . Construction Impeded 3 | . . . . . . . . . . . 1 . . . . . . . 1 . . . . . . . . . . 1 . . . . Haulers Reinforced 2 | . . . . . . . . . . . . . . . . . . . 1 . . . . . . . . . . . . . 1 . Active Scanning Responses . | . . . . . . . . . . . . . . . . . . . . . . . . . . . . . . . . . . . Cargo Convoy Interrupts 1 | . . . . . . . . . . . . . . . . . . . . . . . . . . . . . . . . . 1 . Stealth | -11 -10 -10 -9 -9 -9 -8 -8 -8 -8 -8 -7 -7 -7 -7 -6 -6 -6 -6 -5 -5 -5 -5 -4 -4 -4 -4 -4 -4 -4 -4 -3 -3 -3 -3 --------- Run | Yrd Mat Min Mat Min Exi Min Mat Gar Mat Gar Fac Gar Fac Gar Fac Was Fac Gar Fac Upp Upp Zhi Pro Fac Gar Fac Ext Cet Arc Hub Res Gar Res Qua Distress Signals 31 | . 3 . 2 . . . 1 . . 1 . . . 2 . . 1 . 4 . . . . . . . 1 2 . 1 6 . 5 2 Communications Jammed 128 | . . . . . . . . . . . . . . . 2 . 38 . 41 . . . . . . . 43 . . . . . 4 . Distress Signals 128 | . . . . . . . . . . . . . . . 2 . 38 . 41 . . . . . . . 43 . . . . . 4 . Times Spotted 679 | . 34 18 29 5 . 4 19 31 6 33 5 23 4 38 29 6 7 30 94 . 9 . 7 4 34 5 34 10 . 18 51 22 42 28 Peak Tracking Total 31 | . 4 3 5 2 . 3 3 5 4 6 4 5 2 6 6 3 6 6 31 . 4 . 5 4 7 5 4 5 . 11 5 6 6 5 Tactical Retreats 49 | . 3 2 3 . . . . 3 . 1 . 1 . 3 2 . . . 10 . 4 . . . 3 . 4 . . . 1 3 4 2 Traps | -11 -10 -10 -9 -9 -9 -8 -8 -8 -8 -8 -7 -7 -7 -7 -6 -6 -6 -6 -5 -5 -5 -5 -4 -4 -4 -4 -4 -4 -4 -4 -3 -3 -3 -3 ------- Run | Yrd Mat Min Mat Min Exi Min Mat Gar Mat Gar Fac Gar Fac Gar Fac Was Fac Gar Fac Upp Upp Zhi Pro Fac Gar Fac Ext Cet Arc Hub Res Gar Res Qua Traps Triggered 36 | . 2 . . . . . . 8 . 5 1 3 . 3 1 . . 6 2 . . . . . 2 . . . . 1 1 . . 1 Indirectly 1 | . . . . . . . . . . . . . . . . . . . . . . . . . . . . . . 1 . . . . Trap Hack Attempts . | . . . . . . . . . . . . . . . . . . . . . . . . . . . . . . . . . . . Triggered . | . . . . . . . . . . . . . . . . . . . . . . . . . . . . . . . . . . . Disarmed . | . . . . . . . . . . . . . . . . . . . . . . . . . . . . . . . . . . . Reprogrammed . | . . . . . . . . . . . . . . . . . . . . . . . . . . . . . . . . . . . Reused 2 | . . . . . . . . . . . . . . . . . . . . . 2 . . . . . . . . . . . . . Traps Extracted . | . . . . . . . . . . . . . . . . . . . . . . . . . . . . . . . . . . . Installed 3 | . . . . . . . . . . . . . . . . . . . . . 3 . . . . . . . . . . . . . Triggered 2 | . . . . . . . . . . . . . . . . . . . . . 2 . . . . . . . . . . . . . Most Traps Carried 3 | . . . . . . . . . . . . . . . . . . . . 3 3 . . . . . . . . . . . . . Machines | -11 -10 -10 -9 -9 -9 -8 -8 -8 -8 -8 -7 -7 -7 -7 -6 -6 -6 -6 -5 -5 -5 -5 -4 -4 -4 -4 -4 -4 -4 -4 -3 -3 -3 -3 ---------- Run | Yrd Mat Min Mat Min Exi Min Mat Gar Mat Gar Fac Gar Fac Gar Fac Was Fac Gar Fac Upp Upp Zhi Pro Fac Gar Fac Ext Cet Arc Hub Res Gar Res Qua Machines Disabled 88 | . 4 . 4 2 . 1 3 4 . 7 . 8 . 7 . . . 8 12 . . 2 . . 3 . 5 1 2 1 . 5 2 7 Max in Single Turn 2 | . 1 . 2 2 . 1 1 1 . 1 . 1 . 1 . . . 1 2 . . 1 . . 1 . 1 1 1 1 . 1 1 1 Garrison Access 2 | . . . . . . . . . . . . . . . . . . . . . . . . . . . . . . . 1 . 1 . Garrison Relay 22 | . . . . . . . . 3 . 5 . 3 . 2 . . . 6 . . . . . . 2 . . . . . . 1 . . Phase Generator 3 | . . . . . . . . 1 . . . . . 1 . . . . . . . . . . . . . . . . . 1 . . Network Hub 1 | . . . . . . . . . . . . . . . . . . . . . . . . . . . . . . 1 . . . . Machines Repaired . | . . . . . . . . . . . . . . . . . . . . . . . . . . . . . . . . . . . Machines Dismantled 3 | . . . . . . . . 1 . . . . . 2 . . . . . . . . . . . . . . . . . . . . Machines Sabotaged . | . . . . . . . . . . . . . . . . . . . . . . . . . . . . . . . . . . . Overloaded Fab Kills . | . . . . . . . . . . . . . . . . . . . . . . . . . . . . . . . . . . . Hacking | -11 -10 -10 -9 -9 -9 -8 -8 -8 -8 -8 -7 -7 -7 -7 -6 -6 -6 -6 -5 -5 -5 -5 -4 -4 -4 -4 -4 -4 -4 -4 -3 -3 -3 -3 --------- Run | Yrd Mat Min Mat Min Exi Min Mat Gar Mat Gar Fac Gar Fac Gar Fac Was Fac Gar Fac Upp Upp Zhi Pro Fac Gar Fac Ext Cet Arc Hub Res Gar Res Qua Machines Accessed 97 | . 9 . 10 . 2 . 5 1 2 3 2 3 2 4 3 . 5 4 4 1 . 4 . 2 3 1 7 . . . 13 . 3 4 Terminals 58 | . 7 . 8 . . . 3 1 1 3 1 3 1 4 . . 3 4 2 . . . . 1 3 1 5 . . . 3 . . 4 Fabricators 5 | . . . . . . . . . . . . . . . 1 . 1 . . . . . . . . . . . . . 2 . 1 . Repair Stations 5 | . . . . . . . . . . . . . . . . . . . . . . . . . . . 1 . . . 4 . . . Recycling Units 8 | . 2 . 1 . . . . . . . . . . . 1 . . . 2 . . . . . . . 1 . . . . . 1 . Scanalyzers 4 | . . . 1 . . . 1 . . . . . . . 1 . . . . . . . . . . . . . . . 1 . . . Garrison Access 10 | . . . . . . . 1 . 1 . 1 . 1 . . . 1 . . . . . . 1 . . . . . . 3 . 1 . Total Hacks 248 | . 30 . 24 . 2 . 16 2 6 5 6 7 4 8 9 . 13 7 7 1 . 16 . 4 6 1 14 . . . 41 . 9 10 Successful 123 | . 14 . 10 . 2 . 6 . 5 3 4 2 3 2 6 . 5 2 1 1 . 16 . 4 3 1 4 . . . 19 . 6 4 Failed 125 | . 16 . 14 . . . 10 2 1 2 2 5 1 6 3 . 8 5 6 . . . . . 3 . 10 . . . 22 . 3 6 Catastrophic 23 | . . . 1 . . . 1 . . . . 1 . . 1 . 4 3 1 . . . . . 2 . 1 . . . 4 . 1 3 Database Lockouts . | . . . . . . . . . . . . . . . . . . . . . . . . . . . . . . . . . . . Manual 74 | . 17 . 19 . 1 . 13 . . . 1 . . . 4 . 4 . 2 . . . . 1 1 . 1 1 . . 5 . . 4 Terminals 139 | . 25 . 20 . . . 12 2 4 5 3 7 2 8 . . 9 7 3 . . . . 1 6 1 9 . . . 5 . . 10 Fabricators 21 | . . . . . . . . . . . . . . . 3 . 2 . . . . . . . . . . . . . 12 . 4 . Repair Stations 15 | . . . . . . . . . . . . . . . . . . . . . . . . . . . 3 . . . 12 . . . Recycling Units 17 | . 5 . 1 . . . . . . . . . . . 1 . . . 4 . . . . . . . 2 . . . . . 4 . Scanalyzers 14 | . . . 3 . . . 1 . . . . . . . 5 . . . . . . . . . . . . . . . 5 . . . Garrison Access 23 | . . . . . . . 3 . 2 . 3 . 2 . . . 2 . . . . . . 3 . . . . . . 7 . 1 . Terminal Hacks 56 | . 7 . 1 . 2 . . . 3 3 2 2 1 2 . . 2 2 1 1 . 16 . 1 3 1 1 . . . 1 . . 4 Record 5 | . . . . . 1 . . . . . . . . . . . . . . . . 4 . . . . . . . . . . . . Part Schematic 4 | . . . . . . . . . . . . . . . . . . . . . . 4 . . . . . . . . . . . . Robot Analysis 7 | . 3 . . . . . . . . . . . . . . . . . . . . 4 . . . . . . . . . . . . Prototype ID Bank 5 | . . . . . . . . . . . 1 . . . . . . . . . . 4 . . . . . . . . . . . . Open Door 5 | . . . . . . . . . . 1 . . . . . . . . . 1 . . . . 1 1 1 . . . . . . . Branch Access Points 2 | . . . . . . . . . . . 1 . . . . . . . 1 . . . . . . . . . . . . . . . Emergency Access Points 5 | . . . . . . . . . . 1 . 1 . 1 . . . 1 . . . . . . . . . . . . . . . 1 Terminal Index 3 | . 1 . . . . . . . . . . . . . . . 1 . . . . . . . . . . . . . 1 . . . Garrison Index 1 | . . . . . . . . . . . . . 1 . . . . . . . . . . . . . . . . . . . . . Alert Level 1 | . 1 . . . . . . . . . . . . . . . . . . . . . . . . . . . . . . . . . Unreport Threat 7 | . 2 . 1 . . . . . 3 . . . . . . . . . . . . . . . . . . . . . . . . 1 Locate Traps 1 | . . . . . . . . . . . . . . . . . . . . . . . . . . . . . . . . . . 1 Hauler Manifests 1 | . . . . . . . . . . . . . . . . . 1 . . . . . . . . . . . . . . . . . Zone Layout 2 | . . . . . . . . . . . . . . . . . . . . . . . . 1 . . . . . . . . . 1 Garrison Registry 3 | . . . . . . . . . . 1 . . . . . . . 1 . . . . . . 1 . . . . . . . . . Patrol Navigation 2 | . . . . . . . . . . . . . . 1 . . . . . . . . . . 1 . . . . . . . . . Security Stations 1 | . . . . . . . . . . . . 1 . . . . . . . . . . . . . . . . . . . . . . Derelict Proto ID Bank 1 | . . . . . 1 . . . . . . . . . . . . . . . . . . . . . . . . . . . . . Fabricator Hacks 8 | . . . . . . . . . . . . . . . 1 . . . . . . . . . . . . . . . 3 . 4 . Network Status 3 | . . . . . . . . . . . . . . . 1 . . . . . . . . . . . . . . . . . 2 . Load Schematic 2 | . . . . . . . . . . . . . . . . . . . . . . . . . . . . . . . 1 . 1 . Build 3 | . . . . . . . . . . . . . . . . . . . . . . . . . . . . . . . 2 . 1 . Repair Station Hacks 5 | . . . . . . . . . . . . . . . . . . . . . . . . . . . 2 . . . 3 . . . Scan Component 3 | . . . . . . . . . . . . . . . . . . . . . . . . . . . 1 . . . 2 . . . Repair 2 | . . . . . . . . . . . . . . . . . . . . . . . . . . . 1 . . . 1 . . . Recycling Unit Hacks 5 | . 2 . 1 . . . . . . . . . . . . . . . . . . . . . . . 1 . . . . . 1 . Retrieve Components 5 | . 2 . 1 . . . . . . . . . . . . . . . . . . . . . . . 1 . . . . . 1 . Scanalyzer 9 | . . . 2 . . . . . . . . . . . 3 . . . . . . . . . . . . . . . 4 . . . Insert Component 5 | . . . 1 . . . . . . . . . . . 1 . . . . . . . . . . . . . . . 3 . . . Analyze 4 | . . . 1 . . . . . . . . . . . 2 . . . . . . . . . . . . . . . 1 . . . Garrison Access Hacks 19 | . . . . . . . 2 . 2 . 2 . 2 . . . 2 . . . . . . 2 . . . . . . 6 . 1 . Unlock Access 8 | . . . . . . . 1 . 1 . 1 . 1 . . . 1 . . . . . . 1 . . . . . . 2 . . . Seal Access 2 | . . . . . . . . . . . . . . . . . . . . . . . . . . . . . . . 1 . 1 . Coupler Status 9 | . . . . . . . 1 . 1 . 1 . 1 . . . 1 . . . . . . 1 . . . . . . 3 . . . Unauthorized Hacks 21 | . 5 . 6 . . . 4 . . . . . . . 2 . 1 . . . . . . 1 . . . . . . 2 . . . Terminals 13 | . 4 . 6 . . . 3 . . . . . . . . . . . . . . . . . . . . . . . . . . . Botnet 1 | . . . . . . . 1 . . . . . . . . . . . . . . . . . . . . . . . . . . . Skim 12 | . 4 . 6 . . . 2 . . . . . . . . . . . . . . . . . . . . . . . . . . . Fabricators 2 | . . . . . . . . . . . . . . . 1 . 1 . . . . . . . . . . . . . . . . . Report 1 | . . . . . . . . . . . . . . . 1 . . . . . . . . . . . . . . . . . . . Liberate 1 | . . . . . . . . . . . . . . . . . 1 . . . . . . . . . . . . . . . . . Repair Stations 1 | . . . . . . . . . . . . . . . . . . . . . . . . . . . . . . . 1 . . . Mechanics 1 | . . . . . . . . . . . . . . . . . . . . . . . . . . . . . . . 1 . . . Recycling Units 1 | . 1 . . . . . . . . . . . . . . . . . . . . . . . . . . . . . . . . . Tunnel 1 | . 1 . . . . . . . . . . . . . . . . . . . . . . . . . . . . . . . . . Scanalyzers 2 | . . . . . . . 1 . . . . . . . 1 . . . . . . . . . . . . . . . . . . . Extract 2 | . . . . . . . 1 . . . . . . . 1 . . . . . . . . . . . . . . . . . . . Garrison Access 2 | . . . . . . . . . . . . . . . . . . . . . . . . 1 . . . . . . 1 . . . Eject 2 | . . . . . . . . . . . . . . . . . . . . . . . . 1 . . . . . . 1 . . . Data Cores Recovered 1 | . . . . . . . . . . . . . . . . . 1 . . . . . . . . . . . . . . . . . Used . | . . . . . . . . . . . . . . . . . . . . . . . . . . . . . . . . . . . Hacking Detections 76 | . 9 . 8 . . . 3 1 1 2 2 3 2 4 2 . 5 4 4 . . . . 2 2 . 7 1 . . 9 . 2 3 Full Trace Events 17 | . 2 . 1 . . . . 1 1 . 1 2 . 1 . . . 2 1 . . . . . 1 . 1 . . . 2 . 1 . Feedback Events 1 | . . . . . . . . . 1 . . . . . . . . . . . . . . . . . . . . . . . . . Hackware Fried 1 | . . . . . . . . . 1 . . . . . . . . . . . . . . . . . . . . . . . . . Feedback Blocked . | . . . . . . . . . . . . . . . . . . . . . . . . . . . . . . . . . . . Robot Schematics Acquired . | . . . . . . . . . . . . . . . . . . . . . . . . . . . . . . . . . . . Robots Built . | . . . . . . . . . . . . . . . . . . . . . . . . . . . . . . . . . . . Authchips . | . . . . . . . . . . . . . . . . . . . . . . . . . . . . . . . . . . . Time . | . . . . . . . . . . . . . . . . . . . . . . . . . . . . . . . . . . . Total Robot Build Rating . | . . . . . . . . . . . . . . . . . . . . . . . . . . . . . . . . . . . Part Schematics Acquired 11 | . . . 1 . . . 2 . . . . . . . 3 . . . . . . 4 . . . . . . . . 1 . . . Parts Built 4 | . . . . . . . . . . . . . . . . . . . . . . . . . . . . . . . 3 . 1 . Authchips . | . . . . . . . . . . . . . . . . . . . . . . . . . . . . . . . . . . . Time 427 | . . . . . . . . . . . . . . . . . . . . . . . . . . . . . . . 223 . 204 . Total Part Build Rating 32 | . . . . . . . . . . . . . . . . . . . . . . . . . . . . . . . 24 . 8 . Parts Repaired 1 | . . . . . . . . . . . . . . . . . . . . . . . . . . . . . . . 1 . . . Time 142 | . . . . . . . . . . . . . . . . . . . . . . . . . . . 68 . . . 74 . . . Parts Recycled . | . . . . . . . . . . . . . . . . . . . . . . . . . . . . . . . . . . . Recycled Matter . | . . . . . . . . . . . . . . . . . . . . . . . . . . . . . . . . . . . Retrieved Matter . | . . . . . . . . . . . . . . . . . . . . . . . . . . . . . . . . . . . Retrieved Components 35 | . 12 . 10 . . . . . . . . . . . . . . . . . . . . . . . 3 . . . . . 10 . Parts Scanalyzed 3 | . . . 1 . . . . . . . . . . . 1 . . . . . . . . . . . . . . . 1 . . . Part Schematics Acquired 3 | . . . 1 . . . . . . . . . . . 1 . . . . . . . . . . . . . . . 1 . . . Parts Damaged 1 | . . . . . . . . . . . . . . . . . . . . . . . . . . . . . . . 1 . . . Bothacking | -11 -10 -10 -9 -9 -9 -8 -8 -8 -8 -8 -7 -7 -7 -7 -6 -6 -6 -6 -5 -5 -5 -5 -4 -4 -4 -4 -4 -4 -4 -4 -3 -3 -3 -3 ------------ Run | Yrd Mat Min Mat Min Exi Min Mat Gar Mat Gar Fac Gar Fac Gar Fac Was Fac Gar Fac Upp Upp Zhi Pro Fac Gar Fac Ext Cet Arc Hub Res Gar Res Qua Used RIF Installer 7 | . . . . . . . . 1 . 1 . 1 . 1 . . . 1 . . . . . . 1 . . . . . . 1 . . Coupler Efficiency 1 | . . . . . . . . . . . . . . . . . . 1 . . . . . . . . . . . . . . . . Command Fork 1 | . . . . . . . . . . . . . . 1 . . . . . . . . . . . . . . . . . . . . Threat Obfuscator 1 | . . . . . . . . . . 1 . . . . . . . . . . . . . . . . . . . . . . . . Signal Jammer 1 | . . . . . . . . . . . . 1 . . . . . . . . . . . . . . . . . . . . . . Patrol Navigation 1 | . . . . . . . . . . . . . . . . . . . . . . . . . . . . . . . . 1 . . Autooverride 1 | . . . . . . . . . . . . . . . . . . . . . . . . . 1 . . . . . . . . . Robots Hacked 66 | . . . . . . . . . 1 4 1 3 1 6 6 6 . 2 9 . . . . . 13 . 9 . . . . 2 3 . Non-combat 9 | . . . . . . . . . . . 1 . . . 2 . . . 2 . . . . . . . 2 . . . . . 2 . Combat 57 | . . . . . . . . . 1 4 . 3 1 6 4 6 . 2 7 . . . . . 13 . 7 . . . . 2 1 . Autooverrided 3 | . . . . . . . . . . . . . . . . . . . . . . . . . 1 . 2 . . . . . . . Robot Hacks Applied 74 | . . . . . . . . . 1 4 1 3 1 7 7 7 . 2 11 . . . . . 14 . 11 . . . . 2 3 . parse_system 4 | . . . . . . . . . . . . . . . . 1 . . 2 . . . . . . . . . . . . . 1 . find_chute 3 | . . . . . . . . . . . 1 . . . 1 . . . 1 . . . . . . . . . . . . . . . drop_inventory 2 | . . . . . . . . . . . . . . . 1 . . . . . . . . . . . . . . . . . 1 . purge_threat 3 | . . . . . . . . . . . . . . . . . . . . . . . . . . . 3 . . . . . . . locate_traps 1 | . . . . . . . . . . . . . . . . . . . . . . . . . . . 1 . . . . . . . map_route 1 | . . . . . . . . . . . . . . . . . . . . . . . . . . . . . . . . . 1 . ignore_targets 6 | . . . . . . . . . . . . . . . . 6 . . . . . . . . . . . . . . . . . . find_shortcuts 1 | . . . . . . . . . . . . . . 1 . . . . . . . . . . . . . . . . . . . . find_garrison 1 | . . . . . . . . . . . . . . . 1 . . . . . . . . . . . . . . . . . . . scatter_targeting 1 | . . . . . . . . . . . . . . . . . . . . . . . . . 1 . . . . . . . . . spike_heat 7 | . . . . . . . . . . 1 . . . 2 . . . . . . . . . . . . 4 . . . . . . . amplify_resonance 10 | . . . . . . . . . . 1 . 2 . 2 1 . . . 3 . . . . . 1 . . . . . . . . . overwrite_iff 15 | . . . . . . . . . . 2 . 1 . 1 1 . . . 4 . . . . . 5 . 1 . . . . . . . formatsys_low 3 | . . . . . . . . . . . . . . . . . . . 1 . . . . . . . 2 . . . . . . . formatsys_high 16 | . . . . . . . . . 1 . . . 1 1 2 . . 2 . . . . . . 7 . . . . . . 2 . . Relay Couplers Released 108 | . . . . . . . . 12 . 18 . 14 . 10 . . . 27 . . . . . 3 9 . . . . . 3 5 7 . Ejected 6 | . . . . . . . . . . . . . . . . . . . . . . . . 3 . . . . . . 3 . . . Machine Destruction 91 | . . . . . . . . 12 . 18 . 14 . 10 . . . 23 . . . . . . 9 . . . . . . 5 . . Programmers 11 | . . . . . . . . . . . . . . . . . . 4 . . . . . . . . . . . . . . 7 . Attached 26 | . . . . . . . . . 1 1 . 2 1 2 3 . . 2 3 . . . . . 5 . 2 . . . . 2 2 . Fabnet Peak Effective % . | . . . . . . . . . . . . . . . . . . . . . . . . . . . . . . . . . . . Robots Rewired 41 | . . . . . . . . . . . 2 . . 7 . . . 7 1 . . . . . . . 24 . . . . . . . Allies Hacked 5 | . . . . . . . . . . 2 . 1 1 . . . . . 1 . . . . . . . . . . . . . . . Hacks Repelled . | . . . . . . . . . . . . . . . . . . . . . . . . . . . . . . . . . . . Allies | -11 -10 -10 -9 -9 -9 -8 -8 -8 -8 -8 -7 -7 -7 -7 -6 -6 -6 -6 -5 -5 -5 -5 -4 -4 -4 -4 -4 -4 -4 -4 -3 -3 -3 -3 -------- Run | Yrd Mat Min Mat Min Exi Min Mat Gar Mat Gar Fac Gar Fac Gar Fac Was Fac Gar Fac Upp Upp Zhi Pro Fac Gar Fac Ext Cet Arc Hub Res Gar Res Qua Total Allies 124 | . . 2 . 3 . . . . 1 4 2 3 1 10 3 20 2 9 6 . . . . . 16 . 35 5 . . . 2 . . Largest Group 21 | . . 2 2 3 3 3 2 . 1 2 2 3 1 7 2 19 19 21 19 . . . . . 6 5 15 8 8 3 . 1 . . Highest-Rated Group 983 | . . 42 42 40 40 40 24 . 15 59 48 158 62 166 79 684 684 983 768 . . . . . 254 207 617 691 691 281 . 116 . . Highest-Rated Ally 159 | . . 31 31 16 16 16 16 . 15 39 32 80 62 32 47 50 50 119 85 . . . . . 58 51 159 156 131 96 . 116 . . Total Orders 67 | . . . . . 5 . . . . . . . . 4 3 1 . 20 . . . . . . 6 . 7 18 2 1 . . . . STAY 28 | . . . . . 3 . . . . . . . . 2 2 1 . 7 . . . . . . 2 . 2 8 . 1 . . . . ROAM 6 | . . . . . . . . . . . . . . 1 . . . . . . . . . . 2 . 2 1 . . . . . . FOLLOW 27 | . . . . . 2 . . . . . . . . 1 1 . . 9 . . . . . . 2 . 2 9 1 . . . . . GUARD 5 | . . . . . . . . . . . . . . . . . . 4 . . . . . . . . . . 1 . . . . . AID 1 | . . . . . . . . . . . . . . . . . . . . . . . . . . . 1 . . . . . . . Ally Attacks 735 | . . 19 4 . . 16 2 . 8 19 13 29 5 73 15 2 38 111 209 . . . . . 37 10 63 24 19 7 . 12 . . Total Damage 20927 | . . 208 87 . . 209 . . 118 380 282 1382 175 1842 547 85 528 3384 5126 . . . . . 913 206 2078 629 1675 279 . 794 . . Kills 152 | . . 3 . . . 4 . . 1 4 2 10 1 19 5 . 6 23 47 . . . . . 9 . 6 2 6 1 . 3 . . Allies Corrupted 5 | . . . . . . . . . . . . . . . . . 1 . 1 . . . . . . . 3 . . . . . . . Allies Melted 4 | . . . . . . . . . . . . . . . . 1 . . 1 1 . . . . . . . . 1 . . . . . Intel | -11 -10 -10 -9 -9 -9 -8 -8 -8 -8 -8 -7 -7 -7 -7 -6 -6 -6 -6 -5 -5 -5 -5 -4 -4 -4 -4 -4 -4 -4 -4 -3 -3 -3 -3 ------- Run | Yrd Mat Min Mat Min Exi Min Mat Gar Mat Gar Fac Gar Fac Gar Fac Was Fac Gar Fac Upp Upp Zhi Pro Fac Gar Fac Ext Cet Arc Hub Res Gar Res Qua Robot Analysis Total 7 | . 3 . . . . . . . . . . . . . . . . . . . . 4 . . . . . . . . . . . . Derelict Logs Recovered 6 | . . 2 . 1 . . . . . . . . . . . . . . . 1 1 . 1 . . . . . . . . . . . Drone Launches . | . . . . . . . . . . . . . . . . . . . . . . . . . . . . . . . . . . . Drone Recoveries . | . . . . . . . . . . . . . . . . . . . . . . . . . . . . . . . . . . . Decoded 0b10 Intel 18 | . . . . . . . . . . . . . . . . . . . . . . . . 1 1 4 12 . . . . . . . Traps 15 | . . . . . . . . . . . . . . . . . . . . . . . . . 1 2 12 . . . . . . . Emergency Access 2 | . . . . . . . . . . . . . . . . . . . . . . . . 1 . 1 . . . . . . . . Exits 1 | . . . . . . . . . . . . . . . . . . . . . . . . . . 1 . . . . . . . . Exploration | -11 -10 -10 -9 -9 -9 -8 -8 -8 -8 -8 -7 -7 -7 -7 -6 -6 -6 -6 -5 -5 -5 -5 -4 -4 -4 -4 -4 -4 -4 -4 -3 -3 -3 -3 ------------- Run | Yrd Mat Min Mat Min Exi Min Mat Gar Mat Gar Fac Gar Fac Gar Fac Was Fac Gar Fac Upp Upp Zhi Pro Fac Gar Fac Ext Cet Arc Hub Res Gar Res Qua Turns Passed 44465 | 111 2600 2472 2789 1465 1525 980 2287 2034 283 2155 351 2543 518 2031 1272 1396 521 2513 1018 599 774 148 275 55 1416 165 3271 504 78 314 2621 684 1441 1256 Spaces Moved 16826 | 32 757 497 646 381 468 252 569 564 93 743 119 816 204 718 490 555 196 849 599 396 525 176 556 113 873 99 1251 184 39 116 1232 289 806 623 Core 575 | . . . . . . . . . . . . . . . . . . . 77 146 155 91 . . . . . . . . . . 84 22 Treads 13754 | 31 757 497 646 381 468 252 569 564 93 743 119 816 204 718 490 555 196 849 522 250 370 . . . 453 99 794 184 39 116 1232 289 454 4 Legs 1319 | 1 . . . . . . . . . . . . . . . . . . . . . . . . . . 457 . . . . . 264 597 Wheels . | . . . . . . . . . . . . . . . . . . . . . . . . . . . . . . . . . . . Hover 1174 | . . . . . . . . . . . . . . . . . . . . . . 85 556 113 420 . . . . . . . . . Flight 4 | . . . . . . . . . . . . . . . . . . . . . . . . . . . . . . . . . 4 . Fastest Speed 22 | 120 160 320 320 320 320 320 240 240 243 243 238 158 240 240 155 155 160 160 50 50 50 42 40 40 22 160 140 160 160 160 160 152 35 50 Average Speed 204 | 158 253 320 320 320 320 333 275 312 260 243 238 237 240 240 217 225 216 217 145 126 135 55 40 40 108 160 199 171 160 160 160 156 134 120 Slowest Speed 400 | 160 320 320 320 320 320 400 400 323 323 323 238 240 240 240 240 235 240 240 160 400 200 100 42 40 240 160 250 240 160 160 160 235 225 225 Overloaded Moves 41 | . . . . . . . . . . . . . . . . . . . . . . . . . 41 . . . . . . . . . Propulsion Burnouts . | . . . . . . . . . . . . . . . . . . . . . . . . . . . . . . . . . . . Robots Hopped . | . . . . . . . . . . . . . . . . . . . . . . . . . . . . . . . . . . . Cave-ins Triggered 1 | . . . . . . . . . . . . . . . . . . . . . . . . . . . . . . . . . . 1 Teleports 1 | . . . . . . . . . . . . . . . . . . . . . . . . . . . . . . . . . 1 . Exploration Rate (%) 53 | 5 96 89 65 69 60 68 47 61 12 91 5 95 5 74 18 94 9 93 29 67 70 61 78 3 78 4 72 81 80 13 51 48 25 46 Regions Visited 34 Branch Regions 13 Pre-discovered Areas 7 | . 1 . 1 . 1 . . . . . . . . . . . . . . . . 3 1 . . . . . . . . . . . Known Exits Taken 11 | . . . . . . 1 1 . 1 . 1 . 1 . . . 1 . 1 . . . . 1 . 1 . . . . 1 . 1 . Unknown Exits Taken 14 | 1 1 1 1 1 1 . . . . . . . . . . . . . . 1 1 1 1 . . . 1 1 1 1 . . . . Scrap Searched 9 | . . 1 . 2 . . . . . . . . . . . . . . . 1 2 . 3 . . . . . . . . . . . Spaces Dug 303 | . 5 7 5 . . . 4 . . 12 3 7 2 . 4 . 3 1 10 . 1 . . 1 2 2 7 . . 172 14 12 18 11 Terrain Destroyed 880 | . 50 128 58 1 . 1 18 6 . 43 22 7 2 . 14 . 3 10 89 1 1 . 3 1 10 3 33 . . 180 82 38 64 12 Melee 38 | . . . . . . . 4 . . 1 3 7 2 . . . 3 . 1 . . . . . . . . . . . 3 . 4 10 Projectile 238 | . 10 . 8 1 . 1 7 6 . 1 . . . . 14 . . 10 39 1 1 . 3 1 10 3 33 . . 2 28 20 37 2 AOE 604 | . 40 128 50 . . . 7 . . 41 19 . . . . . . . 49 . . . . . . . . . . 178 51 18 23 . Terrain Rammed . | . . . . . . . . . . . . . . . . . . . . . . . . . . . . . . . . . . . Walls Destroyed . | . . . . . . . . . . . . . . . . . . . . . . . . . . . . . . . . . . . Machines Disabled . | . . . . . . . . . . . . . . . . . . . . . . . . . . . . . . . . . . . Actions | -11 -10 -10 -9 -9 -9 -8 -8 -8 -8 -8 -7 -7 -7 -7 -6 -6 -6 -6 -5 -5 -5 -5 -4 -4 -4 -4 -4 -4 -4 -4 -3 -3 -3 -3 --------- Run | Yrd Mat Min Mat Min Exi Min Mat Gar Mat Gar Fac Gar Fac Gar Fac Was Fac Gar Fac Upp Upp Zhi Pro Fac Gar Fac Ext Cet Arc Hub Res Gar Res Qua Total 24736 | 58 1210 1326 1252 585 501 386 1257 809 138 987 163 1176 225 912 625 686 269 1438 720 472 575 217 593 120 1276 101 1874 345 55 207 1746 431 1047 954 Wait 4816 | . 253 776 468 175 15 123 580 150 10 102 9 86 3 51 63 74 48 386 12 45 28 22 17 5 220 . 392 89 17 40 256 56 75 170 Move 16796 | 31 756 496 645 380 467 251 569 563 93 742 119 815 204 717 490 554 196 847 598 395 524 175 555 113 871 98 1250 183 38 115 1231 287 805 623 Hop . | . . . . . . . . . . . . . . . . . . . . . . . . . . . . . . . . . . . Pick Up 280 | 3 33 4 19 1 5 3 21 9 9 10 2 19 1 7 5 9 1 16 3 3 . 2 1 . 24 . 11 13 . 7 20 2 8 9 Fast Attach 236 | . 6 . 8 . . . 11 9 2 10 2 8 4 10 3 2 3 6 3 6 1 8 6 1 15 . 7 3 . . 45 6 33 18 Attach 175 | 2 6 1 4 1 2 1 11 9 8 6 2 6 1 3 6 6 1 5 9 2 . 2 3 . 23 . 12 8 . 6 11 2 9 7 Detach 74 | . 4 . 1 . . . 3 7 1 3 . 2 . 5 . 2 1 1 4 1 1 2 2 . 18 . 3 . . . 5 2 4 2 Swap 209 | . 20 12 16 10 2 1 5 3 2 13 7 14 1 17 9 5 3 5 3 . . 1 . . 3 . 2 9 . 2 22 7 8 7 Drop 395 | 4 19 4 29 2 10 3 32 22 11 15 2 23 5 12 6 12 5 23 6 1 7 1 2 . 21 . 9 16 . 6 49 4 15 19 Fire 1337 | 18 113 32 62 16 . 4 4 20 2 76 17 156 3 70 40 22 3 55 54 19 9 4 7 1 66 3 151 24 . 31 103 65 80 7 Melee 184 | . . . . . . . 21 . . 2 3 39 3 . . . 8 1 3 . . . . . . . . . . . 4 . 9 91 Ram 4 | . . . . . . . . . . . . . . . . . . . 3 . . . . . . . . . . . . . 1 . Kick 1 | . . . . . . . . . . . . . . . . . . . . . . . . . . . . . . . . . . 1 Crush 7 | . . 1 . . . . . . . . . . . . 3 . . . 1 . 2 . . . . . . . . . . . . . Escape Stasis 44 | . . . . . . . . 8 . 8 . 6 . 2 . . . 6 . . . . . . 14 . . . . . . . . . Rewire 149 | . . . . . . . . . . . . 2 . 1 . . . 87 21 . . . . . 1 . 37 . . . . . . . Trap 3 | . . . . . . . . . . . . . . . . . . . . . 3 . . . . . . . . . . . . . Miscellaneous 26 | . . . . . . . . 9 . . . . . 17 . . . . . . . . . . . . . . . . . . . . Route ------- -11/Scrapyard -10/Materials (discovered 5 exits: *Mat x3 / [*Min x2]) -10/Mines (discovered 2 exits: *Mat x2) -9/Materials (discovered 5 exits: *Mat x3 / [*Min] / [*Sto]) -9/Mines (discovered 3 exits: *Mat x2 / *Exi) -9/Exiles -8/Mines (discovered 2 exits: *Mat x2) -8/Materials (discovered 4 exits: *Fac x3 / Gar) -8/Garrison (discovered 2 exits: *Mat x2) -8/Materials (discovered 3 exits: Fac x2 / Gar) -8/Garrison (discovered 3 exits: *Fac x3) -7/Factory (discovered 4 exits: *Fac / Low x2 / Gar) -7/Garrison (discovered 3 exits: *Fac x3) -7/Factory -7/Garrison (discovered 2 exits: *Fac x2) -6/Factory (discovered 2 exits: *Fac / [*Low]) -6/Waste -6/Factory -6/Garrison (discovered 3 exits: *Fac x3) -5/Factory (discovered 2 exits: *Upp x2) -5/Upper Caves -5/Upper Caves (discovered 2 exits: *Fac / *Zhi) -5/Zhirov -4/Proximity Caves -4/Factory (discovered 2 exits: *Res / Gar) -4/Garrison (discovered 3 exits: *Fac x3) -4/Factory -4/Extension (discovered 2 exits: *Res / *Cet) -4/Cetus (discovered 2 exits: *Res / [*Arc]) -4/Archives (discovered 2 exits: [*Hub x2]) -4/Hub_04(d) -3/Research (discovered 5 exits: *Res x3 / Gar / Gar) -3/Garrison -3/Research (discovered 2 exits: *Res / *Qua) -3/Quarantine (discovered 1 exit: *Res) History --------- Turn | Location | Event 1 | -11/Scrapyard | Discovered new exit (range 1) 112 | -11/Scrapyard | Entered Materials 306 | -10/Materials | Build established: Mutant 689 | -10/Materials | Discovered new exit (range 8) 1242 | -10/Materials | Discovered new exit (range 14) 1382 | -10/Materials | Discovered new exit (range 16) 1722 | -10/Materials | Discovered new exit (range 13) 2293 | -10/Materials | Discovered new exit (range 16) 2712 | -10/Materials | Entered Mines 2732 | -10/Mines | Learned Materials garrison access intel 2840 | -10/Mines | Learned Materials interactive machine intel 2867 | -10/Mines | Core integrity fell below 50% 3090 | -10/Mines | Found a damaged Exp. Sensor Array with a note attached 3097 | -10/Mines | Found Prototype Device 3350 | -10/Mines | Found a hidden stash of uninstalled traps 3515 | -10/Mines | Discovered new exit (range 8) 3951 | -10/Mines | Excavation squad dispatched 3951 | -10/Mines | A large section of the Mines collapsed 5038 | -10/Mines | Discovered new exit (range 13) 5184 | -10/Mines | Entered Materials 5184 | -9/Materials | Accompanied by 2 allies 5184 | -9/Materials | Evolved 2 slots: Utility x1, Weapon x1 5185 | -9/Materials | Loaded intel: 18 interactive machine locations 5189 | -9/Materials | Led the pair of lost Derelicts to an unsafe place 5475 | -9/Materials | Build established: Tank 6609 | -9/Materials | Discovered new exit (range 16) 6983 | -9/Materials | Identified exit to Materials 6986 | -9/Materials | Discovered new exit (range 15) 7042 | -9/Materials | Loaded intel: 2 recycling unit locations 7081 | -9/Materials | Discovered exit to Materials (range 16) 7160 | -9/Materials | Loaded intel: 12 trap records 7178 | -9/Materials | Learned location of 3 exits from Materials 7188 | -9/Materials | Learned location of 1 exit from Storage 7208 | -9/Materials | Learned location of 2 exits from Materials 7280 | -9/Materials | Learned Storage trap positions 7627 | -9/Materials | Identified Exp. Sensor Array 7973 | -9/Materials | Entered Mines 8160 | -9/Mines | Assembled infested the area 8432 | -9/Mines | Learned Materials trap positions 8543 | -9/Mines | Discovered exit to Materials (range 13) 8811 | -9/Mines | Discovered exit to Materials (range 15) 8866 | -9/Mines | Assisted by bots powering up and referring to "LRC-V3" 9282 | -9/Mines | Discovered new exit (range 3) 9371 | -9/Mines | Deemed a non-threat by the Exiles lab entrance 9438 | -9/Mines | Entered Exiles 9438 | -9/Exiles | Accompanied by 3 allies 9518 | -9/Exiles | Met 8R-AWN 9570 | -9/Exiles | Met EX-HEX 9659 | -9/Exiles | Met EX-BIN 9698 | -9/Exiles | Aligned with FarCom system 9701 | -9/Exiles | Given EX-Vault access code 9774 | -9/Exiles | Opened EX-Vault 9793 | -9/Exiles | Found AWS/Autocannon 9801 | -9/Exiles | Found XL Autogun Array 9819 | -9/Exiles | Found Firepult 9897 | -9/Exiles | Warned to stay clear of 0b10 Research branches 9990 | -9/Exiles | Met EX-DEC 10006 | -9/Exiles | Learned location of Zion (-6) 10865 | -9/Exiles | Discovered new exit (range 14) 10963 | -9/Exiles | Stole three prototypes: Firepult, XL Autogun Array, AWS/Autocannon 10963 | -9/Exiles | Entered Mines 10963 | -8/Mines | Accompanied by 3 allies 11330 | -8/Mines | Discovered exit to Materials (range 5) 11899 | -8/Mines | Discovered exit to Materials (range 5) 11943 | -8/Mines | Entered Materials 11943 | -8/Materials | Accompanied by 2 allies 11943 | -8/Materials | Evolved 2 slots: Propulsion x1, Utility x1 11944 | -8/Materials | Identified exit to Factory 11945 | -8/Materials | Loaded intel: 20 trap records 11946 | -8/Materials | Loaded intel: 1 garrison access location 12696 | -8/Materials | Build established: Mutant 13198 | -8/Materials | Build established: Tank 14230 | -8/Materials | Identified exit to Garrison 14230 | -8/Materials | Entered Garrison 14334 | -8/Garrison | Triggered checkpoint 14401 | -8/Garrison | Garrison Relay disabled 14844 | -8/Garrison | Triggered checkpoint 15087 | -8/Garrison | Garrison Relay disabled 15305 | -8/Garrison | Discovered new exit (range 10) 15437 | -8/Garrison | Phase Generator disabled 15531 | -8/Garrison | Spotted B-75 Beast 15537 | -8/Garrison | Destroyed B-75 Beast 15733 | -8/Garrison | Build established: Skirmisher 15792 | -8/Garrison | Triggered checkpoint 15814 | -8/Garrison | Spotted B-75 Beast 15866 | -8/Garrison | Destroyed B-75 Beast 15911 | -8/Garrison | Garrison Relay disabled 16098 | -8/Garrison | Triggered checkpoint 16106 | -8/Garrison | Discovered new exit (range 15) 16157 | -8/Garrison | Installed Relay Interface Framework 16264 | -8/Garrison | Entered Materials 16445 | -8/Materials | Hacking Suite fried by hacking feedback 16542 | -8/Materials | Identified exit to Garrison 16547 | -8/Materials | Entered Garrison 16547 | -8/Garrison | Accompanied by 1 ally 16605 | -8/Garrison | Triggered checkpoint 16676 | -8/Garrison | Build established: Hacker-Skirmisher 16692 | -8/Garrison | Garrison Relay disabled 16782 | -8/Garrison | Rescued a captive Derelict 16792 | -8/Garrison | Rescued a captive Derelict 16814 | -8/Garrison | Garrison Relay disabled 16817 | -8/Garrison | P-60 Hacker assimilated allied WW-FID(b) 17222 | -8/Garrison | Build established: Bothacker-Skirmisher 17237 | -8/Garrison | Triggered checkpoint 17308 | -8/Garrison | Garrison Relay disabled 17363 | -8/Garrison | Discovered exit to Factory (range 14) 17407 | -8/Garrison | Expanded RIF knowledge: Threat Obfuscation 17769 | -8/Garrison | Triggered checkpoint 17785 | -8/Garrison | Triggered checkpoint 17819 | -8/Garrison | Destroyed 10 combat bots 17986 | -8/Garrison | Triggered checkpoint 17997 | -8/Garrison | Discovered exit to Factory (range 12) 18011 | -8/Garrison | Garrison Relay disabled 18473 | -8/Garrison | Triggered checkpoint 18653 | -8/Garrison | Discovered exit to Factory (range 10) 18685 | -8/Garrison | Discovered exit to Factory (range 40) 18685 | -8/Garrison | Discovered exit to Factory (range 6) 18685 | -8/Garrison | Discovered exit to Factory (range 59) 18702 | -8/Garrison | Entered Factory 18702 | -7/Factory | Evolved 2 slots: Propulsion x1, Weapon x1 18704 | -7/Factory | FarCom data flow suspended 18803 | -7/Factory | Identified exit to Lower Caves 18905 | -7/Factory | Discovered new exit (range 11) 19053 | -7/Factory | Identified exit to Garrison 19053 | -7/Factory | Entered Garrison 19068 | -7/Garrison | Learned Factory security intel 19231 | -7/Garrison | Expanded RIF knowledge: Signal Jamming 19273 | -7/Garrison | Triggered checkpoint 19310 | -7/Garrison | Garrison Relay disabled 19387 | -7/Garrison | Build established: Bothacker-Gunner 19525 | -7/Garrison | Triggered checkpoint 20125 | -7/Garrison | Discovered new exit (range 5) 20197 | -7/Garrison | Triggered checkpoint 20248 | -7/Garrison | Garrison Relay disabled 20368 | -7/Garrison | Found Quantum Capacitor 20454 | -7/Garrison | Found embedded Infiltrators 20481 | -7/Garrison | Triggered checkpoint 20521 | -7/Garrison | Triggered checkpoint 20681 | -7/Garrison | Triggered checkpoint 20732 | -7/Garrison | Garrison Relay disabled 20981 | -7/Garrison | Discovered new exit (range 15) 21012 | -7/Garrison | Identified exit to Factory 21147 | -7/Garrison | Triggered checkpoint 21421 | -7/Garrison | Discovered exit to Factory (range 10) 21487 | -7/Garrison | Triggered checkpoint 21596 | -7/Garrison | Entered Factory 21596 | -7/Factory | Accompanied by 1 ally 22094 | -7/Factory | Garrison activated, responded to threat 22114 | -7/Factory | Identified exit to Garrison 22114 | -7/Factory | Entered Garrison 22444 | -7/Garrison | Triggered checkpoint 22583 | -7/Garrison | Expanded RIF knowledge: Command Fork 22923 | -7/Garrison | Phase Generator disabled 22980 | -7/Garrison | Rescued a captive Derelict 23001 | -7/Garrison | Build established: Botlord-Gunner 23238 | -7/Garrison | Triggered checkpoint 23270 | -7/Garrison | Triggered checkpoint 23398 | -7/Garrison | Triggered checkpoint 23441 | -7/Garrison | Garrison Relay disabled 23513 | -7/Garrison | Discovered new exit (range 9) 23654 | -7/Garrison | Triggered checkpoint 23703 | -7/Garrison | Lost 4 allies 23768 | -7/Garrison | Triggered checkpoint 23834 | -7/Garrison | Garrison Relay disabled 23905 | -7/Garrison | Discovered new exit (range 13) 24145 | -7/Garrison | Entered Factory 24145 | -6/Factory | Accompanied by 2 allies 24145 | -6/Factory | Evolved 2 slots: Propulsion x1, Utility x1 24455 | -6/Factory | Build established: Botlord-Skirmisher 24845 | -6/Factory | First assault squad dispatched 25083 | -6/Factory | Build established: Botlord-Gunner 25087 | -6/Factory | Discovered new exit (range 7) 25285 | -6/Factory | Discovered new exit (range 7) 25417 | -6/Factory | Sucked down chute 25417 | -6/Factory | Entered Waste 25417 | -6/Waste | Met up with 1 ally sucked down the chute earlier 25431 | -6/Waste | Spotted C-40 Crusher 25452 | -6/Waste | Spotted C-40 Crusher 25460 | -6/Waste | Spotted C-40 Crusher 25469 | -6/Waste | Spotted C-40 Crusher 25488 | -6/Waste | Spotted C-40 Crusher 25503 | -6/Waste | Spotted C-40 Crusher 25606 | -6/Waste | Destroyed C-40 Crusher 25612 | -6/Waste | Destroyed C-40 Crusher 25793 | -6/Waste | Destroyed C-40 Crusher 25801 | -6/Waste | Destroyed C-40 Crusher 25805 | -6/Waste | Destroyed C-40 Crusher 25808 | -6/Waste | Destroyed C-40 Crusher 26226 | -6/Waste | Discovered new exit (range 13) 26264 | -6/Waste | Found Prototype Device 26264 | -6/Waste | Identified Adv. Kinecellerator 26385 | -6/Waste | Warlord forces began an assault 26813 | -6/Waste | Entered Factory 26813 | -6/Factory | Accompanied by 19 allies 27334 | -6/Factory | Identified exit to Garrison 27334 | -6/Factory | Entered Garrison 27334 | -6/Garrison | Accompanied by 19 allies 27352 | -6/Garrison | Triggered checkpoint 27383 | -6/Garrison | Garrison Relay disabled 27411 | -6/Garrison | Expanded RIF knowledge: Coupler Efficiency 27515 | -6/Garrison | Spotted B-75 Beast 27520 | -6/Garrison | Assimilated Beast 5a with formatsys_high 27522 | -6/Garrison | Triggered checkpoint 27534 | -6/Garrison | Triggered checkpoint 27538 | -6/Garrison | Build established: Botlord-Skirmisher 27542 | -6/Garrison | Triggered checkpoint 27543 | -6/Garrison | Triggered checkpoint 27606 | -6/Garrison | Triggered checkpoint 27663 | -6/Garrison | Discovered new exit (range 13) 27709 | -6/Garrison | Garrison Relay disabled 28004 | -6/Garrison | Garrison Relay disabled 28029 | -6/Garrison | Discovered new exit (range 59) 28029 | -6/Garrison | Discovered new exit (range 23) 28029 | -6/Garrison | Discovered new exit (range 30) 28110 | -6/Garrison | Build established: Botlord-Gunner 28230 | -6/Garrison | Spotted B-75 Beast 28230 | -6/Garrison | Assimilated Beast 5b with formatsys_high 28339 | -6/Garrison | Found Fusion Bomb Launcher 28572 | -6/Garrison | Rewired Executioner 28576 | -6/Garrison | Rewired Executioner 28582 | -6/Garrison | Build established: Botlord-Tank 28672 | -6/Garrison | Garrison Relay disabled 29091 | -6/Garrison | Found Relay Coupler [Proto] 29094 | -6/Garrison | Found Relay Coupler [Proto] 29354 | -6/Garrison | Garrison Relay disabled 29395 | -6/Garrison | Garrison Relay disabled 29847 | -6/Garrison | Entered Factory 29847 | -5/Factory | Accompanied by 18 allies 29847 | -5/Factory | Evolved 2 slots: Propulsion x1, Utility x1 30138 | -5/Factory | Build established: Botlord-Gunner 30354 | -5/Factory | High security lockdown imminent 30387 | -5/Factory | Identified exit to Upper Caves 30434 | -5/Factory | High security lockdown engaged 30738 | -5/Factory | Lost 9 allies 30831 | -5/Factory | Lost 6 allies 30833 | -5/Factory | System corruption reached 10% 30865 | -5/Factory | Lost 6 parts (2n3u1w) 30865 | -5/Factory | Entered Upper Caves 31389 | -5/Upper Caves | Discovered new exit (range 5) 31464 | -5/Upper Caves | Entered another Upper Caves area 31556 | -5/Upper Caves | Learned 4 Factory zone layouts 31655 | -5/Upper Caves | Discovered new exit (range 14) 31658 | -5/Upper Caves | Build established: Derelict-Tank 31957 | -5/Upper Caves | Attracted the attention of an 0b10 checkpoint 32234 | -5/Upper Caves | Discovered new exit (range 8) 32238 | -5/Upper Caves | Entered Zhirov 32238 | -5/Zhirov | Discovered new exit (range 3) 32258 | -5/Zhirov | Learned location of Testing (-2) 32258 | -5/Zhirov | Learned location of Command (-1) 32258 | -5/Zhirov | Learned location of Quarantine (-3) 32270 | -5/Zhirov | Found Alien Artifact 32276 | -5/Zhirov | Found Alien Artifact 32276 | -5/Zhirov | Identified Integrated Reactor 32276 | -5/Zhirov | Installed Integrated Reactor, increased core energy generation (+10) 32386 | -5/Zhirov | Entered Proximity Caves 32608 | -4/Proximity Caves | Spotter reported a threat 32627 | -4/Proximity Caves | Spotted B-86 Titan 32654 | -4/Proximity Caves | Discovered new exit (range 9) 32661 | -4/Proximity Caves | Entered Factory 32661 | -4/Factory | Evolved 2 slots: Utility x2 32689 | -4/Factory | Discovered new exit (range 13) 32715 | -4/Factory | Identified exit to Garrison 32716 | -4/Factory | Entered Garrison 32754 | -4/Garrison | Triggered checkpoint 32756 | -4/Garrison | Garrison Relay disabled 32806 | -4/Garrison | Discovered new exit (range 71) 32806 | -4/Garrison | Discovered new exit (range 30) 32806 | -4/Garrison | Discovered new exit (range 46) 32841 | -4/Garrison | Garrison Relay disabled 32860 | -4/Garrison | Spotted B-86 Titan 32905 | -4/Garrison | Lost 3 parts (1n1u1w) 33052 | -4/Garrison | Triggered checkpoint 33173 | -4/Garrison | Triggered checkpoint 33174 | -4/Garrison | Destroyed B-86 Titan 33176 | -4/Garrison | Triggered checkpoint 33197 | -4/Garrison | Triggered checkpoint 33207 | -4/Garrison | Triggered checkpoint 33236 | -4/Garrison | Lost 3 parts (2n1u) 33243 | -4/Garrison | Lost 3 allies 33329 | -4/Garrison | Build established: Botlord-Mutant 33422 | -4/Garrison | Spotted B-86 Titan 33429 | -4/Garrison | Destroyed B-86 Titan 33541 | -4/Garrison | Spotted B-86 Titan 33547 | -4/Garrison | Destroyed B-86 Titan 33583 | -4/Garrison | Found Relay Coupler [Proto] 33585 | -4/Garrison | Found Relay Coupler [Proto] 33703 | -4/Garrison | Build established: Botlord-Skirmisher 33972 | -4/Garrison | Expanded RIF knowledge: Autooverride 34031 | -4/Garrison | Rescued a captive Derelict 34033 | -4/Garrison | Rescued a captive Derelict 34132 | -4/Garrison | Entered Factory 34132 | -4/Factory | Accompanied by 5 allies 34270 | -4/Factory | Identified exit to Extension 34297 | -4/Factory | Entered Extension 34297 | -4/Extension | Accompanied by 2 allies 34388 | -4/Extension | Lost 3 allies 35090 | -4/Extension | Spotted B-86 Titan 35744 | -4/Extension | Rescued a captive Derelict 35746 | -4/Extension | Rescued a captive Derelict 35953 | -4/Extension | Lost 11 allies 35981 | -4/Extension | Lost 4 parts (1p1n1u1w) 36009 | -4/Extension | Rescued a captive Derelict 36097 | -4/Extension | Rescued a captive Derelict 36098 | -4/Extension | Rescued a captive Derelict 36228 | -4/Extension | Discovered new exit (range 10) 36231 | -4/Extension | Discovered new exit (range 6) 36279 | -4/Extension | Build established: Tank 36735 | -4/Extension | Spotted B-86 Titan 36766 | -4/Extension | Rescued A7 36850 | -4/Extension | Lost 3 allies 37566 | -4/Extension | Build established: Scavenger-Tank 37568 | -4/Extension | Entered Cetus 37568 | -4/Cetus | Accompanied by 5 allies (A7) 37573 | -4/Cetus | Acquired a Cetus Manufacturing Module code from A7 37607 | -4/Cetus | Spotted Cetus Guard 37607 | -4/Cetus | Spotted Cetus Guard 37607 | -4/Cetus | Spotted Cetus Guard 37609 | -4/Cetus | Spotted Cetus Guard 37613 | -4/Cetus | Allies destroyed Cetus Guard 37620 | -4/Cetus | Destroyed Cetus Guard 37623 | -4/Cetus | Allies destroyed Cetus Guard 37627 | -4/Cetus | Destroyed Cetus Guard 37687 | -4/Cetus | System corruption reached 10% 37788 | -4/Cetus | Started Cetus Manufacturing Module 37807 | -4/Cetus | Escorted A7 to Cetus Mainframe 37813 | -4/Cetus | Manufactured an Enhanced Grunt 37819 | -4/Cetus | Discovered new exit (range 21) 37838 | -4/Cetus | Manufactured an Enhanced Grunt 37863 | -4/Cetus | Manufactured an Enhanced Grunt 37884 | -4/Cetus | Spotted Cetus Guard 37884 | -4/Cetus | Spotted Cetus Guard 37885 | -4/Cetus | Spotted Cetus Guard 37885 | -4/Cetus | Spotted Cetus Guard 37888 | -4/Cetus | Manufactured an Enhanced Grunt 37906 | -4/Cetus | Destroyed Cetus Guard 37911 | -4/Cetus | Destroyed Cetus Guard 37913 | -4/Cetus | Manufactured an Enhanced Grunt 37913 | -4/Cetus | Destroyed Cetus Guard 37917 | -4/Cetus | Destroyed Cetus Guard 37927 | -4/Cetus | Discovered new exit (range 21) 37949 | -4/Cetus | Met Revision 17 38072 | -4/Cetus | Entered Archives 38072 | -4/Archives | Accompanied by 8 allies (A7) 38077 | -4/Archives | Received a hacking code to weaken MAIN.C 38092 | -4/Archives | Met Zhirov 38092 | -4/Archives | Discovered new exit (range 22) 38098 | -4/Archives | Reinforcements dispatched to Archives 38098 | -4/Archives | Discovered new exit (range 22) 38143 | -4/Archives | Reinforcements dispatched to Archives 38150 | -4/Archives | Entered Hub_04(d) 38150 | -4/Hub_04(d) | Accompanied by 3 allies 38171 | -4/Hub_04(d) | Discovered new exit (range 8) 38232 | -4/Hub_04(d) | Lost 3 allies 38258 | -4/Hub_04(d) | Found Prototype Device 38259 | -4/Hub_04(d) | Identified Exp. Thermal Shield 38420 | -4/Hub_04(d) | Network Hub disabled 38422 | -4/Hub_04(d) | Spotted Lightning 38422 | -4/Hub_04(d) | Spotted Lightning 38422 | -4/Hub_04(d) | Spotted Lightning 38433 | -4/Hub_04(d) | Destroyed Lightning 38434 | -4/Hub_04(d) | Destroyed Lightning 38437 | -4/Hub_04(d) | System corruption reached 30% 38441 | -4/Hub_04(d) | Core integrity fell below 50% 38455 | -4/Hub_04(d) | Found Prototype Device 38464 | -4/Hub_04(d) | Entered Research 38464 | -3/Research | Evolved 2 slots: Power x1, Utility x1 38465 | -3/Research | Identified Exp. Phase Shifter 38494 | -3/Research | Lost 8 parts (6u2w) 38554 | -3/Research | Discovered new exit (range 14) 38664 | -3/Research | Revision forces began assault on 0b10 38716 | -3/Research | Build established: Scavenger-Mutant 38719 | -3/Research | Met up with Revision 17++ 38976 | -3/Research | Repaired Quantum Reactor 39025 | -3/Research | Identified exit to Garrison 39157 | -3/Research | Found Prototype Launcher 39164 | -3/Research | Research terminal network offline 39234 | -3/Research | Fabricated Exp. Heat Sink (x1) 39263 | -3/Research | Build established: Bothacker-Tank 39481 | -3/Research | Found Gamma Bomb Array 39492 | -3/Research | Identified Adv. Micro-nuke Launcher 39492 | -3/Research | Identified Transdimensional Reconstructor 39543 | -3/Research | Discovered new exit (range 8) 39563 | -3/Research | Spotted Striker 39564 | -3/Research | Spotted Striker 39572 | -3/Research | Destroyed Striker 39784 | -3/Research | Identified exit to Research 39880 | -3/Research | Found Prototype Launcher 39880 | -3/Research | Identified Tesla Bomb Launcher 39885 | -3/Research | Found Prototype Launcher 39885 | -3/Research | Identified Com. Tesla Bomb Launcher 39913 | -3/Research | Spotted Striker 39919 | -3/Research | Spotted Executioner 40046 | -3/Research | Build established: Bothacker-Gunner 40137 | -3/Research | Discovered exit to Research (range 19) 40327 | -3/Research | Spotted Executioner 40328 | -3/Research | Spotted Striker 40343 | -3/Research | Destroyed Striker 40349 | -3/Research | Destroyed Executioner 40384 | -3/Research | Found Corrupted Adv. Kinecellerator 40393 | -3/Research | Destroyed Striker 40496 | -3/Research | Build established: Bothacker-Tank 40525 | -3/Research | Spotted Striker 40547 | -3/Research | Spotted Striker 40606 | -3/Research | Found Prototype Processor 40633 | -3/Research | Lost 3 allies 40774 | -3/Research | Fabricated Rnf. Quantum Reactor (x2) 40780 | -3/Research | Spotted Striker 40781 | -3/Research | Spotted Striker 40788 | -3/Research | Destroyed Striker 40788 | -3/Research | Destroyed Striker 40795 | -3/Research | Spotted Striker 40806 | -3/Research | Destroyed Striker 40841 | -3/Research | Identified Exp. Targeting Computer 40885 | -3/Research | Spotted Striker 40887 | -3/Research | Spotted Striker 40944 | -3/Research | Spotted Striker 40956 | -3/Research | Destroyed Striker 41028 | -3/Research | Destroyed Striker 41032 | -3/Research | Destroyed Striker 41060 | -3/Research | Identified exit to Garrison 41085 | -3/Research | Entered Garrison 41154 | -3/Garrison | Phase Generator disabled 41397 | -3/Garrison | Garrison Relay disabled 41403 | -3/Garrison | Triggered checkpoint 41565 | -3/Garrison | Triggered checkpoint 41573 | -3/Garrison | Spotted B-86 Titan 41583 | -3/Garrison | Triggered checkpoint 41591 | -3/Garrison | Assimilated Titan 8a with formatsys_high 41647 | -3/Garrison | Triggered checkpoint 41672 | -3/Garrison | Expanded RIF knowledge: Patrol Navigation 41701 | -3/Garrison | Triggered checkpoint 41748 | -3/Garrison | Discovered new exit (range 10) 41760 | -3/Garrison | Identified exit to Research 41769 | -3/Garrison | Entered Research 41975 | -3/Research | Build established: Botlord-Gunner 42175 | -3/Research | System corruption reached 10% 42236 | -3/Research | Fabricated Centrium Heavy Treads (x1) 42278 | -3/Research | Warped through subspace 42433 | -3/Research | Garrison activated, responded to threat 42469 | -3/Research | Research terminal network offline 42511 | -3/Research | Found Prototype Device 42511 | -3/Research | Identified Exp. Thermal Defense Suite 42519 | -3/Research | First assault squad dispatched 42605 | -3/Research | Build established: Bothacker-Tank 42686 | -3/Research | Spotted Striker 42686 | -3/Research | Destroyed Striker 42724 | -3/Research | Spotted Striker 42731 | -3/Research | Destroyed Striker 42733 | -3/Research | Lost 3 parts (1n1u1w) 42740 | -3/Research | Core integrity fell below 50% 42745 | -3/Research | Released all parts (11) 42789 | -3/Research | Discovered new exit (range 16) 42804 | -3/Research | Lost 8 parts (2n3u3w) 42911 | -3/Research | Spotted Striker 42915 | -3/Research | Spotted Striker 43022 | -3/Research | Identified exit to Quarantine 43048 | -3/Research | Discovered exit to Research (range 16) 43101 | -3/Research | Build established: Scavenger-Mutant 43113 | -3/Research | Cargo convoy interrupted 43183 | -3/Research | Spotted Striker 43210 | -3/Research | Entered Quarantine 43217 | -3/Quarantine | Lost 3 allies 43220 | -3/Quarantine | Cryocooling Duct disabled 43235 | -3/Quarantine | Ambient heat levels rising (+20) 43235 | -3/Quarantine | Non-combat units ordered to evacuate 43247 | -3/Quarantine | Found Alien Artifact 43361 | -3/Quarantine | System corruption reached 30% 43470 | -3/Quarantine | Crushed by falling debris 43534 | -3/Quarantine | Core integrity fell below 20% 43552 | -3/Quarantine | Discovered exit to Research (range 6) 43641 | -3/Quarantine | Found Alien Slashing Weapon 43641 | -3/Quarantine | Identified Sigix Broadsword 43844 | -3/Quarantine | Found Alien Artifact 43844 | -3/Quarantine | Identified Dimensional Node Initializer 43844 | -3/Quarantine | Initialized slip node 43853 | -3/Quarantine | Found Transdimensional Reconstructor 43913 | -3/Quarantine | Found Gamma Bomb Array 44048 | -3/Quarantine | Lost 7 parts (2n5u) 44126 | -3/Quarantine | Found Adv. Powered Armor 44156 | -3/Quarantine | Cryocooling Duct disabled 44171 | -3/Quarantine | Ambient heat levels rising (+20) 44171 | -3/Quarantine | Combat units ordered to evacuate 44228 | -3/Quarantine | Found Alien Impact Weapon 44228 | -3/Quarantine | Identified Core Stripper 44271 | -3/Quarantine | Quarantine Guard activated 44301 | -3/Quarantine | Found Fusion Bomb Launcher 44370 | -3/Quarantine | Spotted Quarantine Guard 44385 | -3/Quarantine | Spotted Quarantine Guard 44424 | -3/Quarantine | Spotted Quarantine Guard 44427 | -3/Quarantine | Destroyed Quarantine Guard 44428 | -3/Quarantine | Destroyed Quarantine Guard 44452 | -3/Quarantine | Released all parts (12) 44461 | -3/Quarantine | Spotted Quarantine Guard 44466 | -3/Quarantine | Destroyed by Quarantine Guard with Hypercooled Linear Accelerator Last Messages --------------- 44428_ Adv. Cooling System melted. 44429_ Overheating: Energy bleed (-5). 44430_ Acquired 78 matter. 44433_ Acquired Adv. Medium Treads. 44443_ System corrupted: Component data lost. 44447_ Myomer Leg destroyed. 44450_ Firepult destroyed. 44452_ Released Plasma Sword. 44452_ Released Adv. Powered Armor. 44452_ Released Adv. Heat Sink. 44452_ Released Adv. Target Analyzer. 44452_ Released Adv. Heat Sink. 44452_ Released Adv. VSS Leg. 44452_ Released Adv. Coolant Injector. 44452_ Released Graphene Brace. 44452_ Released Adv. Heat Sink. 44452_ Released Myomer Leg. 44452_ Released Nova Cannon. 44452_ Released Adv. Medium Treads. 44460_ System corrupted: Heat flow error (+223). Map ----- +----------------------------------------------------+ | ??????????????#[#???????????????# #????? | | ############??# #???????????????# +????? | | # ! / #??# #???????????????? #????? | | # #??# #???????????????? ?????? | | # #### #######???????????????????? | | # """ """ + + ????????????? | | # """ """ # # # ??????? | | # """ """ # #######+### ??????? | | # # ??????? | | # """ """ + ??????? | | # """ """ # ??????? | | # """ """ # * ??????? | | # ####!#############+### ??????? | | # """ """ #??#%#???#### # ??????? | | # """ """ #??# #???# # # ??????? | | # """ """ #??#|#???# ## """"" # ??????? | | # #??# ######## "" "" # ??????? | | ###########"#?# ## = !# "/" # ??????? | | ???????????##?# ## # + ??????? | | ??????????????# ## # ## #??????? | | ?????????????## ## """ # ## #??????? | | ?????????????# # T" # ## #??????? | | ?????????????# + """ ###+####### #??????? | | ?????????????# # #?# #?????# #??????? | | ??????????#####+###%####?# #?????# #??????? | | ??????????# Y @ #????# #?????# #??????? | | ??????????# #????# #?????# #??????? | | ??????????# ] #????# #######+#??????? | | ??????????# = ]#????# ## #??????? | | ??????????#######;######?# ## #??????? | | ??????????# #### #?# ## #??????? | | ??????????# # #?# ## #??????? | | ??????????###### "" #?# ## =#??????? | | ???????????????# "" #?# ## #??????? | | ???????????????# "" ### ####+########+## | | ???????????????# " ## # | | ???????????????# "" ## | | ???????????????# "" + | | ???????????????# "" ## !!! """"" | | ???????????????# " ## !!! """"" | | ???????????????# == ## !!! """" | | ????????????#######+#!##" | | ????????????" %!/=]% | | ????????????" %!!! % | | ????????????" ! | | ????????????#T#########" ######"######### | | ????????????##???????# #??###????????? | | ?????????????????????# "" #?????????????? | | ?????????????????????# """ #?????????????? | | ?????????????????????# =""] #?????????????? | +----------------------------------------------------+ Best States ------------- Heat Dissipation 122 Coolant Potential 100 Energy Generation 55 Energy Capacity 1200 Matter Stores 300 Matter Capacity 300 Sight Range 23 Robot Scan Range 20 Terrain Scan Density 10 Jamming Range 14 Cloak Strength 3 Base Temperature (-) 200 EM Shielding 3 Corruption Block 15 Armor Coverage 1800 Resistance: KI 20 Resistance: TH 30 Power Shielding 90 Utility Shielding 66 Phase Shifting 20 Evasion (%) 69 Targeting Accuracy 12 Target Analysis 8 Armor Integrity Analysis 40 Recoil Reduction 6 Matter Filtering 50 Energy Filtering 50 Particle Charging 30 Kinecelleration 50 Offensive Hacking 30 Defensive Hacking 14 Relay Coupler Types 4 Relay Coupler Value 101 Authchip Count 1 Item Schematics ----------------- Exp. Sensor Array | -9/Materials | Scanalyzed Particle Charger | -8/Materials | Extracted Imp. Sensor Array | -8/Materials | Extracted Imp. Heavy Treads | -6/Factory | Scanalyzed Hrd. Light Armor Plating | -6/Factory | Extracted Magnetic Acceleration Cannon | -6/Factory | Extracted Exp. Heat Sink | -5/Zhirov | Free Exp. Optical Array | -5/Zhirov | Free Imp. Arc Thrower | -5/Zhirov | Free Assault Drone Bay | -5/Zhirov | Free Centrium Heavy Treads | -3/Research | Scanalyzed Robot Schematics ------------------ None Fabricated ------------ Exp. Heat Sink | x1 | -3/Research Rnf. Quantum Reactor | x2 | -3/Research | Preloaded Centrium Heavy Treads | x1 | -3/Research Alien Tech Used ----------------- Integrated Reactor Transdimensional Reconstructor Sigix Broadsword Dimensional Node Initializer Core Stripper Achievements -------------- None Challenges ------------ None Game ------ Seed SupersonicLatentMonowheel Manual? 0 Play Time 06:30:44 Cumulative 306.2 hours Start 2024.09.19 @ 19:05:14 End 2024.09.24 @ 18:30:49 Sessions 18 Manual Loads 0 Difficulty Rogue Special Mode None Game No. 146 Rogue 146 Adventurer 0 Explorer 0 Win Type - Total 8 Types 4/1/3/0/0/0/0/0/0 Lore% 79 Gallery% 86 Achievement% 72 Wizard Run 0 Options --------- Layout 0 ASCII 0 Keyboard 0 Movement Mouse Keybinds 0 Fullscreen 2 Font 12/Smallcaps Map View 83x54 Zoom Use 0% Tactical HUD 1 Map Filters NONE Filters NONE Steam 1 RUN: de68dbf2-9cd0-469a-aa13-a9e18d42f96c